Workbook

Sheet розрахунок 12.5
A2: Додаток до Паспорту фізико-хімічних показників природного газу по маршруту № 12
A4: Число місяця | B4: Теплота згоряння вища, МДж/м3 | C4: Хмельницька область | D4: Загальний обсяг газу, м3
C5: Обсяг газу переданого за добу, м3
C6: ГРС Цимбалівка
A7: 1 | B7: 38.15 | C7: 1390 | D7: =SUM(C7:C7) -> 1390
A8: 2 | B8: 38.19 | C8: 1970 | D8: 1970
A9: 3 | B9: 38.19 | C9: 2520 | D9: 2520
A10: 4 | B10: 38.19 | C10: 3270 | D10: 3270
A11: 5 | B11: 38.19 | C11: 2790 | D11: 2790
A12: 6 | B12: 38.19 | C12: 3390 | D12: 3390
A13: 7 | B13: 38.19 | C13: 3320 | D13: 3320
A14: 8 | B14: 38.19 | C14: 3220 | D14: 3220
A15: 9 | B15: 38.21 | C15: 1860 | D15: 1860
A16: 10 | B16: 38.21 | C16: 1350 | D16: 1350
A17: 11 | B17: 38.21 | C17: 0 | D17: 0
A18: 12 | B18: 38.21 | C18: 4310 | D18: 4310
A19: 13 | B19: 38.21 | C19: 6340 | D19: 6340
A20: 14 | B20: 38.21 | C20: 1970 | D20: 1970
A21: 15 | B21: 38.14 | C21: 1420 | D21: 1420
A22: 16 | B22: 38.14 | C22: 1160 | D22: 1160
A23: 17 | B23: 38.14 | C23: 1070 | D23: 1070
A24: 18 | B24: 38.14 | C24: 1050 | D24: 1050
A25: 19 | B25: 38.14 | C25: 1110 | D25: 1110
A26: 20 | B26: 38.14 | C26: 1280 | D26: 1280
A27: 21 | B27: 38.14 | C27: 1480 | D27: 1480
A28: 22 | B28: 38.19 | C28: 1280 | D28: 1280
A29: 23 | B29: 38.19 | C29: 1180 | D29: 1180
A30: 24 | B30: 38.19 | C30: 990 | D30: 990
A31: 25 | B31: 38.19 | C31: 1082 | D31: 1082
A32: 26 | B32: 38.19 | C32: 1280 | D32: 1280
A33: 27 | B33: 38.19 | C33: 1480 | D33: 1480
A34: 28 | B34: 38.19 | C34: 1280 | D34: 1280
A35: 29 | B35: 38.41 | C35: 1180 | D35: 1180
A36: 30 | B36: 38.41 | C36: 990 | D36: 990
A37: 31 | B37: 38.41 | C37: 1082 | D37: 1082
A38: Загальний обсяг газу, м3 | C38: =SUM(C7:C37) -> 58094 | D38: =SUM(D7:D37) -> 58094
A39: Енергія, МДж | C39: =SUMPRODUCT(B7:B37,C7:C37) -> 2219157.8 | D39: =SUMPRODUCT(B7:B37,D7:D37) -> 2219157.8
A40: Теплота згоряння (середньозважене значення за місяць), МДж/м³ | C40: =C39/C38 -> 38.19943196 | D40: =D39/D38 -> 38.19943196
A41: Теплота згоряння (середньозважене значення за місяць), ккал/м³ | C41: =C40*238.8459 -> 9123.777705 | D41: =D40*238.8459 -> 9123.777705
A42: Теплота згоряння (середньозважене значення за місяць), кВт*год./м³ | C42: =C40/3.6 -> 10.61095332 | D42: =D40/3.6 -> 10.61095332

Sheet розрахунок 13.5
A2: Додаток до Паспорту фізико-хімічних показників природного газу по маршруту № 13
A4: Число місяця | B4: Теплота згоряння вища, МДж/м3 | C4: Хмельницька область | Q4: Загальний обсяг газу, м3
C5: Обсяг газу переданого за добу, м3
C6: АГНКС Шепетівка | D6: ГРС Пасічна | E6: ГРС Самчики | F6: ГРС Староконстантинів | G6: ГРС Миролюбне | H6: ГРС Кузьмин | I6: ГРС Щиборівка | J6: ГРС Хролін | K6: ГРС Гриців | L6: ГРС Шепетівка | M6: ГРС Камянка | N6: ГРС Славута | O6: ГРСРадошівка | P6: ГРС Ізяслав
A7: 1 | B7: 38.15 | C7: 510 | D7: 25150 | E7: 9870 | F7: 55780 | G7: 2770 | H7: 8330 | I7: 4120 | J7: 1500 | K7: 6010 | L7: 58030 | M7: 2200 | N7: 65840 | O7: 1070 | P7: 21300 | Q7: =SUM(C7:P7) -> 262480
A8: 2 | B8: 38.19 | C8: 860 | D8: 18580 | E8: 8760 | F8: 46420 | G8: 2050 | H8: 6040 | I8: 2990 | J8: 1050 | K8: 4530 | L8: 42120 | M8: 1500 | N8: 60540 | O8: 690 | P8: 15320 | Q8: 211450
A9: 3 | B9: 38.19 | C9: 1320 | D9: 13630 | E9: 7100 | F9: 38170 | G9: 1780 | H9: 4670 | I9: 2240 | J9: 870 | K9: 3630 | L9: 36320 | M9: 1210 | N9: 54880 | O9: 550 | P9: 12880 | Q9: 179250
A10: 4 | B10: 38.19 | C10: 1290 | D10: 10610 | E10: 5720 | F10: 29580 | G10: 1300 | H10: 3600 | I10: 1780 | J10: 660 | K10: 2570 | L10: 27170 | M10: 960 | N10: 48910 | O10: 410 | P10: 9860 | Q10: 144420
A11: 5 | B11: 38.19 | C11: 1430 | D11: 8910 | E11: 5230 | F11: 28490 | G11: 1100 | H11: 3180 | I11: 1580 | J11: 580 | K11: 2180 | L11: 22910 | M11: 800 | N11: 45290 | O11: 330 | P11: 8760 | Q11: 130770
A12: 6 | B12: 38.19 | C12: 900 | D12: 9520 | E12: 3780 | F12: 25900 | G12: 1170 | H12: 3050 | I12: 1500 | J12: 460 | K12: 1910 | L12: 20430 | M12: 620 | N12: 37670 | O12: 320 | P12: 7920 | Q12: 115150
A13: 7 | B13: 38.19 | C13: 360 | D13: 8360 | E13: 2970 | F13: 24560 | G13: 980 | H13: 2920 | I13: 1420 | J13: 470 | K13: 1730 | L13: 20220 | M13: 620 | N13: 40100 | O13: 300 | P13: 7810 | Q13: 112820
A14: 8 | B14: 38.19 | C14: 360 | D14: 11370 | E14: 5090 | F14: 33390 | G14: 1440 | H14: 4360 | I14: 2060 | J14: 780 | K14: 2660 | L14: 29790 | M14: 970 | N14: 53240 | O14: 480 | P14: 10420 | Q14: 156410
A15: 9 | B15: 38.21 | C15: 1050 | D15: 15360 | E15: 6820 | F15: 40640 | G15: 1750 | H15: 5680 | I15: 2600 | J15: 1200 | K15: 4170 | L15: 45200 | M15: 1560 | N15: 59150 | O15: 670 | P15: 14600 | Q15: 200450
A16: 10 | B16: 38.21 | C16: 1410 | D16: 18990 | E16: 10120 | F16: 50980 | G16: 2090 | H16: 6780 | I16: 3070 | J16: 1510 | K16: 5390 | L16: 54820 | M16: 1910 | N16: 66490 | O16: 720 | P16: 17950 | Q16: 242230
A17: 11 | B17: 38.21 | C17: 1280 | D17: 17120 | E17: 3290 | F17: 45950 | G17: 1900 | H17: 6040 | I17: 2630 | J17: 1330 | K17: 5010 | L17: 48690 | M17: 1520 | N17: 53030 | O17: 620 | P17: 16040 | Q17: 204450
A18: 12 | B18: 38.21 | C18: 1250 | D18: 19610 | E18: 9110 | F18: 55790 | G18: 2290 | H18: 7760 | I18: 3490 | J18: 1310 | K18: 5330 | L18: 49960 | M18: 1490 | N18: 63630 | O18: 600 | P18: 17520 | Q18: 239140
A19: 13 | B19: 38.21 | C19: 930 | D19: 20380 | E19: 11930 | F19: 49140 | G19: 2310 | H19: 7460 | I19: 3420 | J19: 1300 | K19: 5580 | L19: 51560 | M19: 1660 | N19: 59220 | O19: 670 | P19: 17110 | Q19: 232670
A20: 14 | B20: 38.21 | C20: 350 | D20: 19830 | E20: 11660 | F20: 47070 | G20: 2200 | H20: 6720 | I20: 3230 | J20: 1100 | K20: 4980 | L20: 43790 | M20: 1320 | N20: 60000 | O20: 520 | P20: 14870 | Q20: 217640
A21: 15 | B21: 38.14 | C21: 700 | D21: 10380 | E21: 5920 | F21: 33450 | G21: 1140 | H21: 3540 | I21: 1730 | J21: 560 | K21: 2490 | L21: 25960 | M21: 890 | N21: 46090 | O21: 330 | P21: 9700 | Q21: 142880
A22: 16 | B22: 38.14 | C22: 1440 | D22: 10310 | E22: 5390 | F22: 34370 | G22: 1190 | H22: 3490 | I22: 1750 | J22: 510 | K22: 2200 | L22: 24240 | M22: 780 | N22: 48360 | O22: 320 | P22: 9420 | Q22: 143770
A23: 17 | B23: 38.14 | C23: 1060 | D23: 10470 | E23: 5260 | F23: 32820 | G23: 1030 | H23: 3190 | I23: 1600 | J23: 470 | K23: 2080 | L23: 23340 | M23: 720 | N23: 49670 | O23: 300 | P23: 9260 | Q23: 141270
A24: 18 | B24: 38.14 | C24: 1030 | D24: 6140 | E24: 4050 | F24: 31160 | G24: 1030 | H24: 2970 | I24: 1540 | J24: 460 | K24: 1920 | L24: 22470 | M24: 760 | N24: 52930 | O24: 310 | P24: 8860 | Q24: 135630
A25: 19 | B25: 38.14 | C25: 1220 | D25: 2920 | E25: 4540 | F25: 29660 | G25: 1010 | H25: 2840 | I25: 1450 | J25: 430 | K25: 1700 | L25: 19850 | M25: 700 | N25: 44960 | O25: 300 | P25: 8090 | Q25: 119670
A26: 20 | B26: 38.14 | C26: 980 | D26: 8710 | E26: 4040 | F26: 28640 | G26: 820 | H26: 3080 | I26: 1530 | J26: 490 | K26: 1820 | L26: 20590 | M26: 530 | N26: 51960 | O26: 350 | P26: 7600 | Q26: 131140
A27: 21 | B27: 38.14 | C27: 390 | D27: 8830 | E27: 3890 | F27: 28910 | G27: 1010 | H27: 3040 | I27: 1620 | J27: 560 | K27: 1820 | L27: 23390 | M27: 680 | N27: 56680 | O27: 340 | P27: 8570 | Q27: 139730
A28: 22 | B28: 38.19 | C28: 580 | D28: 7470 | E28: 3970 | F28: 31110 | G28: 960 | H28: 2820 | I28: 1340 | J28: 430 | K28: 1480 | L28: 18550 | M28: 570 | N28: 52730 | O28: 270 | P28: 7980 | Q28: 130260
A29: 23 | B29: 38.19 | C29: 1180 | D29: 6920 | E29: 4060 | F29: 31450 | G29: 840 | H29: 2380 | I29: 1190 | J29: 400 | K29: 1410 | L29: 17830 | M29: 520 | N29: 49570 | O29: 240 | P29: 7730 | Q29: 125720
A30: 24 | B30: 38.19 | C30: 1260 | D30: 7410 | E30: 3850 | F30: 28010 | G30: 640 | H30: 2460 | I30: 1230 | J30: 430 | K30: 1530 | L30: 18560 | M30: 550 | N30: 48780 | O30: 270 | P30: 7320 | Q30: 122300
A31: 25 | B31: 38.19 | C31: 1260 | D31: 7780 | E31: 3210 | F31: 31320 | G31: 910 | H31: 2780 | I31: 1370 | J31: 420 | K31: 1660 | L31: 19100 | M31: 610 | N31: 57070 | O31: 290 | P31: 7140 | Q31: 134920
A32: 26 | B32: 38.19 | C32: 1250 | D32: 7810 | E32: 3180 | F32: 32600 | G32: 840 | H32: 2710 | I32: 1350 | J32: 420 | K32: 1520 | L32: 18530 | M32: 540 | N32: 47410 | O32: 240 | P32: 6510 | Q32: 124910
A33: 27 | B33: 38.19 | C33: 880 | D33: 8660 | E33: 3380 | F33: 32160 | G33: 1010 | H33: 2930 | I33: 1550 | J33: 430 | K33: 1710 | L33: 19250 | M33: 640 | N33: 43440 | O33: 290 | P33: 6840 | Q33: 123170
A34: 28 | B34: 38.19 | C34: 340 | D34: 7330 | E34: 3560 | F34: 28640 | G34: 870 | H34: 2660 | I34: 1280 | J34: 410 | K34: 1480 | L34: 18500 | M34: 610 | N34: 43080 | O34: 300 | P34: 7020 | Q34: 116080
A35: 29 | B35: 38.41 | C35: 730 | D35: 6460 | E35: 1830 | F35: 29190 | G35: 750 | H35: 2390 | I35: 1130 | J35: 320 | K35: 1260 | L35: 15770 | M35: 480 | N35: 44970 | O35: 240 | P35: 6230 | Q35: 111750
A36: 30 | B36: 38.41 | C36: 1060 | D36: 6390 | E36: 1580 | F36: 27500 | G36: 720 | H36: 2250 | I36: 1130 | J36: 310 | K36: 1260 | L36: 14680 | M36: 450 | N36: 41570 | O36: 240 | P36: 6210 | Q36: 105350
A37: 31 | B37: 38.41 | C37: 1721 | D37: 6156 | E37: 1613 | F37: 28465 | G37: 688 | H37: 2286 | I37: 1102 | J37: 322 | K37: 1274 | L37: 14883 | M37: 447 | N37: 41575 | O37: 217 | P37: 5990 | Q37: 106739
A38: Загальний обсяг газу, м3 | C38: =SUM(C7:C37) -> 30381 | D38: =SUM(D7:D37) -> 347566 | E38: 164773 | F38: =SUM(F7:F37) -> 1091315 | G38: 40588 | H38: 124406 | I38: =SUM(I7:I37) -> 60022 | J38: 21492 | K38: 84294 | L38: 886503 | M38: 28817 | N38: 1588835 | O38: 12797 | P38: 322830 | Q38: =SUM(Q7:Q37) -> 4804619
A39: Енергія, МДж | C39: =SUMPRODUCT(B7:B37,C7:C37) -> 1160786.81 | D39: =SUMPRODUCT(B7:B37,D7:D37) -> 13276058.66 | E39: =SUMPRODUCT(B7:B37,E7:E37) -> 6292795.23 | F39: =SUMPRODUCT(B7:B37,F7:F37) -> 41688663.65 | G39: =SUMPRODUCT(B7:B37,G7:G37) -> 1550308.98 | H39: =SUMPRODUCT(B7:B37,H7:H37) -> 4751956.96 | I39: =SUMPRODUCT(B7:B37,I7:I37) -> 2292622.82 | J39: =SUMPRODUCT(B7:B37,J7:J37) -> 820909.92 | K39: =SUMPRODUCT(B7:B37,K7:K37) -> 3219689.84 | L39: =SUMPRODUCT(B7:B37,L7:L37) -> 33861090.03 | M39: =SUMPRODUCT(B7:B37,M7:M37) -> 1100672.37 | N39: =SUMPRODUCT(B7:B37,N7:N37) -> 60692858.25 | O39: =SUMPRODUCT($B7:$B37,O7:O37) -> 488791.47 | P39: 12330967.1 | Q39: =SUMPRODUCT(B7:B37,Q7:Q37) -> 183528172.1
A40: Теплота згоряння (середньозважене значення за місяць), МДж/м³ | C40: =C39/C38 -> 38.20765643 | D40: =D39/D38 -> 38.19723063 | E40: =E39/E38 -> 38.19069405 | F40: =F39/F38 -> 38.20039462 | G40: 38.19623978 | H40: 38.19716863 | I40: 38.196375 | J40: 38.19606924 | K40: 38.19595511 | L40: 38.19624979 | M40: 38.19524482 | N40: 38.19959798 | O40: 38.19578573 | P40: 38.19647214 | Q40: 38.19827797
A41: Теплота згоряння (середньозважене значення за місяць), ккал/м³ | C41: =C40*238.8459 -> 9125.742087 | D41: =D40*238.8459 -> 9123.251927 | E41: 9121.690691 | F41: 9124.007632 | G41: 9123.015266 | H41: 9123.237118 | I41: 9123.047563 | J41: 9122.974533 | K41: 9122.947274 | L41: 9123.017658 | M41: 9122.777625 | N41: =N40*238.8459 -> 9123.817358 | O41: 9122.906819 | P41: 9123.070764 | Q41: 9123.50208
A42: Теплота згоряння (середньозважене значення за місяць), кВт*год./м³ | C42: =C40/3.6 -> 10.6132379 | D42: =D40/3.6 -> 10.61034184 | E42: 10.60852612 | F42: 10.61122073 | G42: 10.6100666 | H42: 10.61032462 | I42: 10.61010417 | J42: 10.61001923 | K42: 10.60998753 | L42: 10.61006939 | M42: 10.60979023 | N42: 10.61099944 | O42: 10.60994048 | P42: 10.61013115 | Q42: 10.61063277

Sheet додаток 13,5
A2: Додаток до Паспорту фізико-хімічних показників природного газу №13
A4: Область | B4: ГРС, прямий споживач | C4: Cередньозважене значення вищої теплоти згоряння
C5: МДж/м³ | D5: ккал/м³ | E5: кВт*год./м³
A6: Хмельницька область | B6: АГНКС Шепетівка | C6: 38.21 | D6: 9126 | E6: 10.61
B7: ГРС Пасічна | C7: 38.2 | D7: 9123 | E7: 10.61
B8: ГРС Самчики | C8: 38.19 | D8: 9122 | E8: 10.61
B9: ГРС Староконстантинів | C9: 38.2 | D9: 9124 | E9: 10.61
B10: ГРС Миролюбне | C10: 38.2 | D10: 9123 | E10: 10.61
B11: ГРС Кузьмин | C11: 38.2 | D11: 9123 | E11: 10.61
B12: ГРС Щиборівка | C12: 38.2 | D12: 9123 | E12: 10.61
B13: ГРС Хролін | C13: 38.2 | D13: 9123 | E13: 10.61
B14: ГРС Гриців | C14: 38.2 | D14: 9123 | E14: 10.61
B15: ГРС Шепетівка | C15: 38.2 | D15: 9123 | E15: 10.61
B16: ГРС Кам'янка | C16: 38.2 | D16: 9123 | E16: 10.61
B17: ГРС Славута | C17: 38.2 | D17: 9124 | E17: 10.61
B18: ГРС Радошівка | C18: 38.2 | D18: 9123 | E18: 10.61
B19: ГРС Ізяслав | C19: 38.2 | D19: 9123 | E19: 10.61
A20: Середньозважене значення вищої теплоти згоряння по маршруту № 13 | C20: 38.2 | D20: 9124 | E20: 10.61
A24: Начальник управління Красилівського ЛВУМГ Байханов М.Д.
A25: Підрозділу підприємства, якому підпорядкована лабораторія | D25: прізвище | E25: підпис | F25: дата
A26: Завідувач лабораторією Пілецька С.А.
A27: Лабораторія, де здійснювалось вимірювання газу | D27: прізвище | E27: підпис | F27: дата
A28: Начальник служби метрології Мягкий С.В.
A29: Підрозділу, відповідального за облік газу за маршрутом | D29: прізвище | E29: підпис | F29: дата

Sheet марш.13,5
A1: ПАТ "УКРТРАНСГАЗ" | G1: ПАСПОРТ ФІЗИКО-ХІМІЧНИХ ПОКАЗНИКІВ ПРИРОДНОГО ГАЗУ № 13
A2: Філія "УМГ "Київтрансгаз" | G2: переданого Красилівським ЛВУМГ та прийнятого ПАТ "Хмельницькгаз", ПАТ " Шепетівкагаз" та прямими споживачами: АГНКС Шепетівка
A3: Красилівське ЛВУМГ | G3: Маршрут № 13
A4: Вимірювальна хіміко-аналітична лабораторія
A5: Свідоцтво № 18-144"Ч"-12 чинно до 07.05.2017 р. | K5: по газопроводу ДК | V5: за період з | X5: 2017-05-01 | Z5: по | AA5: 2017-05-31
A7: Число місяця | B7: Компонентний склад, % мол. | N7: Фізико-хімічні показники газу обчислені на основі компонентного складу, 101,325 кПа | X7: Температура точки роси за вологою (Р = 3.92 МПа), °С | Y7: Температура точки роси за вуглеводнями, °С | Z7: Вміст сірководню, г/м3 | AA7: Вміст меркаптанової сірки, г/м3 | AB7: Вміст механічних домішок, г/м3
N8: Густина абсолютна, кг/м3,при 20 °С, | O8: Температура вимірювання/згоряння при 20/25°С
B9: метан, С1 | C9: етан, С2 | D9: пропан, С3 | E9: ізо-бутан, і-С4 | F9: н-бутан, н-С4 | G9: нео-пентан, нео-С5 | H9: ізо-пентан, і-С5 | I9: н-пентан, н-С5 | J9: гексани та вищі, С6+ | K9: кисень, О2 | L9: азот, N2 | M9: діоксид вуглецю, CО2 | O9: Теплота згоряння нижча | R9: Теплота згоряння вища | U9: Число Воббе вище
O10: ккал/м³ | P10: МДж/м³ | Q10: кВт⋅год/м³ | R10: ккал/м³ | S10: МДж/м³ | T10: кВт⋅год/м³ | U10: ккал/м³ | V10: МДж/м³ | W10: кВт⋅год/м³
A11: 1 | O11: =P11*238.8459 -> 8222.461184 | P11: 34.4258 | Q11: =P11/3.6 -> 9.562722222 | R11: =S11*238.8459 -> 9112.066623 | S11: 38.1504 | T11: =S11/3.6 -> 10.59733333 | AC11: =SUM(B11:M11)+$K$42+$N$42 -> 0
A12: 2 | B12: 89.8376 | C12: 4.9065 | D12: 1.1191 | E12: 0.117 | F12: 0.1813 | G12: 0.0041 | H12: 0.0466 | I12: 0.0402 | J12: 0.0679 | K12: 0.0023 | L12: 1.7258 | M12: 1.9515 | N12: 0.7509 | O12: 8235.717132 | P12: 34.4813 | Q12: =P12/3.6 -> 9.578138889 | R12: 9121.954844 | S12: 38.1918 | T12: =S12/3.6 -> 10.60883333 | U12: 11553 | V12: 48.3697 | W12: =V12/3.6 -> 13.43602778 | X12: -13.6 | Y12: -12.9 | AC12: 99.9999
A13: 3 | O13: 8235.717132 | P13: 34.4813 | Q13: =P13/3.6 -> 9.578138889 | R13: 9121.954844 | S13: 38.1918 | T13: =S13/3.6 -> 10.60883333 | V13: 0 | W13: =V13/3.6 -> 0 | AC13: 0 | AD13: =IF(AC13=100,"ОК"," ") -> 
A14: 4 | O14: 8235.717132 | P14: 34.4813 | Q14: 9.578138889 | R14: 9121.954844 | S14: 38.1918 | T14: 10.60883333 | W14: =V14/3.6 -> 0 | AC14: 0 | AD14: =IF(AC14=100,"ОК"," ") -> 
A15: 5 | O15: 8235.717132 | P15: 34.4813 | Q15: 9.578138889 | R15: 9121.954844 | S15: 38.1918 | T15: 10.60883333 | W15: 0 | AC15: 0
A16: 6 | O16: 8235.717132 | P16: 34.4813 | Q16: 9.578138889 | R16: 9121.954844 | S16: 38.1918 | T16: 10.60883333 | W16: =V16/3.6 -> 0 | AC16: 0
A17: 7 | O17: 8235.717132 | P17: 34.4813 | Q17: 9.578138889 | R17: 9121.954844 | S17: 38.1918 | T17: 10.60883333 | W17: =V17/3.6 -> 0 | AC17: 0
A18: 8 | O18: 8235.717132 | P18: 34.4813 | Q18: 9.578138889 | R18: 9121.954844 | S18: 38.1918 | T18: 10.60883333 | W18: =V18/3.6 -> 0 | AC18: 0
A19: 9 | B19: 89.7628 | C19: 4.9414 | D19: 1.1312 | E19: 0.1179 | F19: 0.1861 | G19: 0.0042 | H19: 0.048 | I19: 0.0415 | J19: 0.0679 | K19: 0.0031 | L19: 1.7472 | M19: 1.9488 | N19: 0.7515 | O19: 8239.562551 | P19: 34.4974 | Q19: 9.582611111 | R19: 9125.991339 | S19: 38.2087 | T19: 10.61352778 | U19: 11553 | V19: 48.3721 | W19: =V19/3.6 -> 13.43669444 | X19: -10.8 | Y19: -9.5 | AC19: 100.0001
A20: 10 | O20: 8239.562551 | P20: 34.4974 | Q20: 9.582611111 | R20: 9125.991339 | S20: 38.2087 | T20: 10.61352778 | W20: =V20/3.6 -> 0 | AC20: 0
A21: 11 | O21: 8239.562551 | P21: 34.4974 | Q21: 9.582611111 | R21: 9125.991339 | S21: 38.2087 | T21: 10.61352778 | W21: =V21/3.6 -> 0 | AC21: 0
A22: 12 | O22: 8239.562551 | P22: 34.4974 | Q22: 9.582611111 | R22: 9125.991339 | S22: 38.2087 | T22: 10.61352778 | W22: 0 | AC22: 0
A23: 13 | O23: 8239.562551 | P23: 34.4974 | Q23: 9.582611111 | R23: 9125.991339 | S23: 38.2087 | T23: 10.61352778 | W23: =V23/3.6 -> 0 | AC23: 0
A24: 14 | O24: 8239.562551 | P24: 34.4974 | Q24: 9.582611111 | R24: 9125.991339 | S24: 38.2087 | T24: 10.61352778 | W24: =V24/3.6 -> 0 | AC24: 0
A25: 15 | B25: 89.7471 | C25: 4.9335 | D25: 1.0836 | E25: 0.1153 | F25: 0.1841 | G25: 0.0043 | H25: 0.0477 | I25: 0.0407 | J25: 0.0627 | K25: 0.0061 | L25: 1.7974 | M25: 1.9775 | N25: 0.7512 | O25: 8223.942029 | P25: 34.432 | Q25: 9.564444444 | R25: 9109.009396 | S25: 38.1376 | T25: 10.59377778 | U25: 11534 | V25: 48.2903 | W25: 13.41397222 | X25: -10.2 | Y25: -9.5 | AB25: 0.0008 | AC25: 100 | AD25: ОК
A26: 16 | O26: 8223.942029 | P26: 34.432 | Q26: 9.564444444 | R26: 9109.009396 | S26: 38.1376 | T26: 10.59377778 | W26: =V26/3.6 -> 0 | Z26: 0.0002 | AA26: 0.0006 | AC26: 0
A27: 17 | O27: 8223.942029 | P27: 34.432 | Q27: 9.564444444 | R27: 9109.009396 | S27: 38.1376 | T27: 10.59377778 | W27: =V27/3.6 -> 0 | AC27: 0
A28: 18 | O28: 8223.942029 | P28: 34.432 | Q28: 9.564444444 | R28: 9109.009396 | S28: 38.1376 | T28: 10.59377778 | V28: 0 | W28: 0 | AC28: 0
A29: 19 | O29: 8223.942029 | P29: 34.432 | Q29: 9.564444444 | R29: 9109.009396 | S29: 38.1376 | T29: 10.59377778 | W29: 0 | AC29: 0
A30: 20 | O30: 8223.942029 | P30: 34.432 | Q30: 9.564444444 | R30: 9109.009396 | S30: 38.1376 | T30: 10.59377778 | W30: =V30/3.6 -> 0 | AC30: 0 | AD30: =IF(AC30=100,"ОК"," ") -> 
A31: 21 | O31: 8223.942029 | P31: 34.432 | Q31: 9.564444444 | R31: 9109.009396 | S31: 38.1376 | T31: 10.59377778 | W31: =V31/3.6 -> 0 | AC31: 0
A32: 22 | B32: 89.6337 | C32: 5.0169 | D32: 1.1205 | E32: 0.1187 | F32: 0.1903 | G32: 0.0042 | H32: 0.048 | I32: 0.0411 | J32: 0.06 | K32: 0.0066 | L32: 1.7914 | M32: 1.9685 | N32: 0.7521 | O32: 8236.003747 | P32: 34.4825 | Q32: 9.578472222 | R32: 9121.978728 | S32: 38.1919 | T32: 10.60886111 | U32: 11543 | V32: 48.3302 | W32: 13.42505556 | X32: -9.9 | Y32: -9.1 | AC32: 99.9999
A33: 23 | O33: 8236.003747 | P33: 34.4825 | Q33: 9.578472222 | R33: 9121.978728 | S33: 38.1919 | T33: 10.60886111 | W33: 0 | AB33: 0.0008 | AC33: 0 | AD33: =IF(AC33=100,"ОК"," ") -> 
A34: 24 | O34: 8236.003747 | P34: 34.4825 | Q34: 9.578472222 | R34: 9121.978728 | S34: 38.1919 | T34: 10.60886111 | V34: 0 | W34: 0 | AC34: 0
A35: 25 | O35: 8236.003747 | P35: 34.4825 | Q35: 9.578472222 | R35: 9121.978728 | S35: 38.1919 | T35: 10.60886111 | W35: 0 | AC35: 0
A36: 26 | O36: 8236.003747 | P36: 34.4825 | Q36: 9.578472222 | R36: 9121.978728 | S36: 38.1919 | T36: =S36/3.6 -> 10.60886111 | W36: 0 | AC36: 0
A37: 27 | O37: 8236.003747 | P37: 34.4825 | Q37: 9.578472222 | R37: 9121.978728 | S37: 38.1919 | T37: 10.60886111 | W37: =V37/3.6 -> 0 | AC37: 0
A38: 28 | O38: 8236.003747 | P38: 34.4825 | Q38: 9.578472222 | R38: 9121.978728 | S38: 38.1919 | T38: 10.60886111 | W38: =V38/3.6 -> 0 | AC38: 0
A39: 29 | B39: 89.3134 | C39: 5.0721 | D39: 1.2883 | E39: 0.1358 | F39: 0.2324 | G39: 0.0044 | H39: 0.06 | I39: 0.0543 | J39: 0.0827 | K39: 0.0064 | L39: 1.7951 | M39: 1.955 | N39: 0.7566 | O39: 8285.34931 | P39: 34.6891 | Q39: =P39/3.6 -> 9.635861111 | R39: 9174.883095 | S39: 38.4134 | T39: =S39/3.6 -> 10.67038889 | U39: 11576 | V39: 48.4669 | W39: 13.46302778 | X39: -9.2 | Y39: -8.7 | Z39: 0.0002 | AA39: 0.0006 | AC39: 99.9999
A40: 30 | O40: 8285.34931 | P40: 34.6891 | Q40: =P40/3.6 -> 9.635861111 | R40: 9174.883095 | S40: 38.4134 | T40: =S40/3.6 -> 10.67038889 | AC40: 0
A41: 31 | O41: 8285.34931 | P41: 34.6891 | Q41: =P41/3.6 -> 9.635861111 | R41: 9174.883095 | S41: 38.4134 | T41: =S41/3.6 -> 10.67038889 | AC41: 0
A42: Рівень одоризації відповідає чинним нормативним документам | O42: =SUMPRODUCT(O11:O41,' розрахунок 11.5'!AQ7:AQ37)/' розрахунок 11.5'!AQ38 -> 8237.561839 | P42: =SUMPRODUCT(P11:P41,' розрахунок 11.5'!AQ7:AQ37)/' розрахунок 11.5'!AQ38 -> 34.48902342 | Q42: =SUMPRODUCT(Q11:Q41,' розрахунок 11.5'!AQ7:AQ37)/' розрахунок 11.5'!AQ38 -> 9.580284284 | R42: =SUMPRODUCT(R11:R41,' розрахунок 11.5'!AQ7:AQ37)/' розрахунок 11.5'!AQ38 -> 9124.005682 | S42: =SUMPRODUCT(S11:S41,' розрахунок 11.5'!AQ7:AQ37)/' розрахунок 11.5'!AQ38 -> 38.20038645 | T42: =SUMPRODUCT(T11:T41,' розрахунок 11.5'!AQ7:AQ37)/' розрахунок 11.5'!AQ38 -> 10.61121846
H43: Середньозважене значення теплоти згоряння:
B46: Начальник управління Красилівського ЛВУМГ Байханов М.Д.
C47: Підрозділу підприємства, якому підпорядкована лабораторія | O47: прізвище | R47: підпис | V47: дата
B48: Завідувач лабораторією Пілецька С.А.
C49: Лабораторія, де здійснювалось вимірювання газу | O49: прізвище | R49: підпис | V49: дата
B50: Начальник служби метрології Мягкий С.В.
C51: Підрозділу, відповідального за облік газу за маршрутом | O51: прізвище | R51: підпис | V51: дата

Sheet марш.12,5
A1: ПАТ "УКРТРАНСГАЗ" | G1: ПАСПОРТ ФІЗИКО-ХІМІЧНИХ ПОКАЗНИКІВ ПРИРОДНОГО ГАЗУ № 12
A2: Філія "УМГ "Київтрансгаз" | G2: переданого Красилівським ЛВУМГ та прийнятого ПАТ "Хмельницькгаз"
A3: Красилівське ЛВУМГ | G3: Маршрут № 12
A4: Вимірювальна хіміко-аналітична лабораторія
A5: Свідоцтво № 18-144"Ч"-12 чинно до 07.05.2017 р. | K5: по газопроводу КЗУ 2 | V5: за період з | X5: 2017-05-01 | Z5: по | AA5: 2017-05-31
A7: Число місяця | B7: Компонентний склад, % мол. | N7: Фізико-хімічні показники газу обчислені на основі компонентного складу, 101,325 кПа | X7: Температура точки роси за вологою (Р = 3.92 МПа), °С | Y7: Температура точки роси за вуглеводнями, °С | Z7: Вміст сірководню, г/м3 | AA7: Вміст меркаптанової сірки, г/м3 | AB7: Вміст механічних домішок, г/м3
N8: Густина абсолютна, кг/м3,при 20 °С, | O8: Температура вимірювання/згоряння при 20/25°С
B9: метан, С1 | C9: етан, С2 | D9: пропан, С3 | E9: ізо-бутан, і-С4 | F9: н-бутан, н-С4 | G9: нео-пентан, нео-С5 | H9: ізо-пентан, і-С5 | I9: н-пентан, н-С5 | J9: гексани та вищі, С6+ | K9: кисень, О2 | L9: азот, N2 | M9: діоксид вуглецю, CО2 | O9: Теплота згоряння нижча | R9: Теплота згоряння вища | U9: Число Воббе вище
O10: ккал/м³ | P10: МДж/м³ | Q10: кВт⋅год/м³ | R10: ккал/м³ | S10: МДж/м³ | T10: кВт⋅год/м³ | U10: ккал/м³ | V10: МДж/м³ | W10: кВт⋅год/м³
A11: 1 | O11: =P11*238.8459 -> 8222.461184 | P11: 34.4258 | Q11: =P11/3.6 -> 9.562722222 | R11: =S11*238.8459 -> 9112.066623 | S11: 38.1504 | T11: =S11/3.6 -> 10.59733333 | AC11: =SUM(B11:M11)+$K$42+$N$42 -> 0
A12: 2 | B12: 89.8376 | C12: 4.9065 | D12: 1.1191 | E12: 0.117 | F12: 0.1813 | G12: 0.0041 | H12: 0.0466 | I12: 0.0402 | J12: 0.0679 | K12: 0.0023 | L12: 1.7258 | M12: 1.9515 | N12: 0.7509 | O12: 8235.717132 | P12: 34.4813 | Q12: =P12/3.6 -> 9.578138889 | R12: 9121.954844 | S12: 38.1918 | T12: =S12/3.6 -> 10.60883333 | U12: 11553 | V12: 48.3697 | W12: =V12/3.6 -> 13.43602778 | X12: -13.6 | Y12: -12.9 | AC12: 99.9999
A13: 3 | O13: 8235.717132 | P13: 34.4813 | Q13: =P13/3.6 -> 9.578138889 | R13: 9121.954844 | S13: 38.1918 | T13: =S13/3.6 -> 10.60883333 | V13: 0 | W13: =V13/3.6 -> 0 | AC13: 0 | AD13: =IF(AC13=100,"ОК"," ") -> 
A14: 4 | O14: 8235.717132 | P14: 34.4813 | Q14: 9.578138889 | R14: 9121.954844 | S14: 38.1918 | T14: 10.60883333 | W14: =V14/3.6 -> 0 | AC14: 0 | AD14: =IF(AC14=100,"ОК"," ") -> 
A15: 5 | O15: 8235.717132 | P15: 34.4813 | Q15: 9.578138889 | R15: 9121.954844 | S15: 38.1918 | T15: 10.60883333 | W15: 0 | AC15: 0
A16: 6 | O16: 8235.717132 | P16: 34.4813 | Q16: 9.578138889 | R16: 9121.954844 | S16: 38.1918 | T16: 10.60883333 | W16: =V16/3.6 -> 0 | AC16: 0
A17: 7 | O17: 8235.717132 | P17: 34.4813 | Q17: 9.578138889 | R17: 9121.954844 | S17: 38.1918 | T17: 10.60883333 | W17: =V17/3.6 -> 0 | AC17: 0
A18: 8 | O18: 8235.717132 | P18: 34.4813 | Q18: 9.578138889 | R18: 9121.954844 | S18: 38.1918 | T18: 10.60883333 | W18: =V18/3.6 -> 0 | AC18: 0
A19: 9 | B19: 89.7628 | C19: 4.9414 | D19: 1.1312 | E19: 0.1179 | F19: 0.1861 | G19: 0.0042 | H19: 0.048 | I19: 0.0415 | J19: 0.0679 | K19: 0.0031 | L19: 1.7472 | M19: 1.9488 | N19: 0.7515 | O19: 8239.562551 | P19: 34.4974 | Q19: 9.582611111 | R19: 9125.991339 | S19: 38.2087 | T19: 10.61352778 | U19: 11553 | V19: 48.3721 | W19: =V19/3.6 -> 13.43669444 | X19: -10.8 | Y19: -9.5 | AC19: 100.0001
A20: 10 | O20: 8239.562551 | P20: 34.4974 | Q20: 9.582611111 | R20: 9125.991339 | S20: 38.2087 | T20: 10.61352778 | W20: =V20/3.6 -> 0 | AC20: 0
A21: 11 | O21: 8239.562551 | P21: 34.4974 | Q21: 9.582611111 | R21: 9125.991339 | S21: 38.2087 | T21: 10.61352778 | W21: =V21/3.6 -> 0 | AC21: 0
A22: 12 | O22: 8239.562551 | P22: 34.4974 | Q22: 9.582611111 | R22: 9125.991339 | S22: 38.2087 | T22: 10.61352778 | W22: 0 | AC22: 0
A23: 13 | O23: 8239.562551 | P23: 34.4974 | Q23: 9.582611111 | R23: 9125.991339 | S23: 38.2087 | T23: 10.61352778 | W23: =V23/3.6 -> 0 | AC23: 0
A24: 14 | O24: 8239.562551 | P24: 34.4974 | Q24: 9.582611111 | R24: 9125.991339 | S24: 38.2087 | T24: 10.61352778 | W24: =V24/3.6 -> 0 | AC24: 0
A25: 15 | B25: 89.7471 | C25: 4.9335 | D25: 1.0836 | E25: 0.1153 | F25: 0.1841 | G25: 0.0043 | H25: 0.0477 | I25: 0.0407 | J25: 0.0627 | K25: 0.0061 | L25: 1.7974 | M25: 1.9775 | N25: 0.7512 | O25: 8223.942029 | P25: 34.432 | Q25: 9.564444444 | R25: 9109.009396 | S25: 38.1376 | T25: 10.59377778 | U25: 11534 | V25: 48.2903 | W25: 13.41397222 | X25: -10.2 | Y25: -9.5 | AB25: 0.0008 | AC25: 100 | AD25: ОК
A26: 16 | O26: 8223.942029 | P26: 34.432 | Q26: 9.564444444 | R26: 9109.009396 | S26: 38.1376 | T26: 10.59377778 | W26: =V26/3.6 -> 0 | Z26: 0.0002 | AA26: 0.0006 | AC26: 0
A27: 17 | O27: 8223.942029 | P27: 34.432 | Q27: 9.564444444 | R27: 9109.009396 | S27: 38.1376 | T27: 10.59377778 | W27: =V27/3.6 -> 0 | AC27: 0
A28: 18 | O28: 8223.942029 | P28: 34.432 | Q28: 9.564444444 | R28: 9109.009396 | S28: 38.1376 | T28: 10.59377778 | V28: 0 | W28: 0 | AC28: 0
A29: 19 | O29: 8223.942029 | P29: 34.432 | Q29: 9.564444444 | R29: 9109.009396 | S29: 38.1376 | T29: 10.59377778 | W29: 0 | AC29: 0
A30: 20 | O30: 8223.942029 | P30: 34.432 | Q30: 9.564444444 | R30: 9109.009396 | S30: 38.1376 | T30: 10.59377778 | W30: =V30/3.6 -> 0 | AC30: 0 | AD30: =IF(AC30=100,"ОК"," ") -> 
A31: 21 | O31: 8223.942029 | P31: 34.432 | Q31: 9.564444444 | R31: 9109.009396 | S31: 38.1376 | T31: 10.59377778 | W31: =V31/3.6 -> 0 | AC31: 0
A32: 22 | B32: 89.6337 | C32: 5.0169 | D32: 1.1205 | E32: 0.1187 | F32: 0.1903 | G32: 0.0042 | H32: 0.048 | I32: 0.0411 | J32: 0.06 | K32: 0.0066 | L32: 1.7914 | M32: 1.9685 | N32: 0.7521 | O32: 8236.003747 | P32: 34.4825 | Q32: 9.578472222 | R32: 9121.978728 | S32: 38.1919 | T32: 10.60886111 | U32: 11543 | V32: 48.3302 | W32: 13.42505556 | X32: -9.9 | Y32: -9.1 | AC32: 99.9999
A33: 23 | O33: 8236.003747 | P33: 34.4825 | Q33: 9.578472222 | R33: 9121.978728 | S33: 38.1919 | T33: 10.60886111 | W33: 0 | AB33: 0.0008 | AC33: 0 | AD33: =IF(AC33=100,"ОК"," ") -> 
A34: 24 | O34: 8236.003747 | P34: 34.4825 | Q34: 9.578472222 | R34: 9121.978728 | S34: 38.1919 | T34: 10.60886111 | V34: 0 | W34: 0 | AC34: 0
A35: 25 | O35: 8236.003747 | P35: 34.4825 | Q35: 9.578472222 | R35: 9121.978728 | S35: 38.1919 | T35: 10.60886111 | W35: 0 | AC35: 0
A36: 26 | O36: 8236.003747 | P36: 34.4825 | Q36: 9.578472222 | R36: 9121.978728 | S36: 38.1919 | T36: =S36/3.6 -> 10.60886111 | W36: 0 | AC36: 0
A37: 27 | O37: 8236.003747 | P37: 34.4825 | Q37: 9.578472222 | R37: 9121.978728 | S37: 38.1919 | T37: 10.60886111 | W37: =V37/3.6 -> 0 | AC37: 0
A38: 28 | O38: 8236.003747 | P38: 34.4825 | Q38: 9.578472222 | R38: 9121.978728 | S38: 38.1919 | T38: 10.60886111 | W38: =V38/3.6 -> 0 | AC38: 0
A39: 29 | B39: 89.3134 | C39: 5.0721 | D39: 1.2883 | E39: 0.1358 | F39: 0.2324 | G39: 0.0044 | H39: 0.06 | I39: 0.0543 | J39: 0.0827 | K39: 0.0064 | L39: 1.7951 | M39: 1.955 | N39: 0.7566 | O39: 8285.34931 | P39: 34.6891 | Q39: =P39/3.6 -> 9.635861111 | R39: 9174.883095 | S39: 38.4134 | T39: =S39/3.6 -> 10.67038889 | U39: 11576 | V39: 48.4669 | W39: 13.46302778 | X39: -9.2 | Y39: -8.7 | Z39: 0.0002 | AA39: 0.0006 | AC39: 99.9999
A40: 30 | O40: 8285.34931 | P40: 34.6891 | Q40: =P40/3.6 -> 9.635861111 | R40: 9174.883095 | S40: 38.4134 | T40: =S40/3.6 -> 10.67038889 | AC40: 0
A41: 31 | O41: 8285.34931 | P41: 34.6891 | Q41: =P41/3.6 -> 9.635861111 | R41: 9174.883095 | S41: 38.4134 | T41: =S41/3.6 -> 10.67038889 | AC41: 0
A42: Рівень одоризації відповідає чинним нормативним документам | O42: =SUMPRODUCT(O11:O41,' розрахунок 11.5'!AQ7:AQ37)/' розрахунок 11.5'!AQ38 -> 8237.561839 | P42: =SUMPRODUCT(P11:P41,' розрахунок 11.5'!AQ7:AQ37)/' розрахунок 11.5'!AQ38 -> 34.48902342 | Q42: =SUMPRODUCT(Q11:Q41,' розрахунок 11.5'!AQ7:AQ37)/' розрахунок 11.5'!AQ38 -> 9.580284284 | R42: =SUMPRODUCT(R11:R41,' розрахунок 11.5'!AQ7:AQ37)/' розрахунок 11.5'!AQ38 -> 9124.005682 | S42: =SUMPRODUCT(S11:S41,' розрахунок 11.5'!AQ7:AQ37)/' розрахунок 11.5'!AQ38 -> 38.20038645 | T42: =SUMPRODUCT(T11:T41,' розрахунок 11.5'!AQ7:AQ37)/' розрахунок 11.5'!AQ38 -> 10.61121846
H43: Середньозважене значення теплоти згоряння:
B46: Начальник управління Красилівського ЛВУМГ Байханов М.Д.
C47: Підрозділу підприємства, якому підпорядкована лабораторія | O47: прізвище | R47: підпис | V47: дата
B48: Завідувач лабораторією Пілецька С.А.
C49: Лабораторія, де здійснювалось вимірювання газу | O49: прізвище | R49: підпис | V49: дата
B50: Начальник служби метрології Мягкий С.В.
C51: Підрозділу, відповідального за облік газу за маршрутом | O51: прізвище | R51: підпис | V51: дата

Sheet марш.11,5
A1: ПАТ "УКРТРАНСГАЗ" | G1: ПАСПОРТ ФІЗИКО-ХІМІЧНИХ ПОКАЗНИКІВ ПРИРОДНОГО ГАЗУ № 11
A2: Філія "УМГ "Київтрансгаз" | G2: переданого Красилівським ЛВУМГ та прийнятого ПАТ "Хмельницькгаз" та прямими споживачами: АГНКС ПП АвтоГаз Красилів, АГНКС -1 Хмельницький,АГНКС ТОВ ТД "Сан Ойл", "Мотор Січ" м. Волочиськ
A3: Красилівське ЛВУМГ | G3: Маршрут № 11
A4: Вимірювальна хіміко-аналітична лабораторія
A5: Свідоцтво № 18-144"Ч"-12 чинно до 07.05.2017 р. | K5: по газопроводу КЗУ -1, ДК, ДКр | V5: за період з | X5: 2017-05-01 | Z5: по | AA5: 2017-05-31
A7: Число місяця | B7: Компонентний склад, % мол. | N7: Фізико-хімічні показники газу обчислені на основі компонентного складу, 101,325 кПа | X7: Температура точки роси за вологою (Р = 3.92 МПа), °С | Y7: Температура точки роси за вуглеводнями, °С | Z7: Вміст сірководню, г/м3 | AA7: Вміст меркаптанової сірки, г/м3 | AB7: Вміст механічних домішок, г/м3
N8: Густина абсолютна, кг/м3,при 20 °С, | O8: Температура вимірювання/згоряння при 20/25°С
B9: метан, С1 | C9: етан, С2 | D9: пропан, С3 | E9: ізо-бутан, і-С4 | F9: н-бутан, н-С4 | G9: нео-пентан, нео-С5 | H9: ізо-пентан, і-С5 | I9: н-пентан, н-С5 | J9: гексани та вищі, С6+ | K9: кисень, О2 | L9: азот, N2 | M9: діоксид вуглецю, CО2 | O9: Теплота згоряння нижча | R9: Теплота згоряння вища | U9: Число Воббе вище
O10: ккал/м³ | P10: МДж/м³ | Q10: кВт⋅год/м³ | R10: ккал/м³ | S10: МДж/м³ | T10: кВт⋅год/м³ | U10: ккал/м³ | V10: МДж/м³ | W10: кВт⋅год/м³
A11: 1 | O11: =P11*238.8459 -> 8222.461184 | P11: 34.4258 | Q11: =P11/3.6 -> 9.562722222 | R11: =S11*238.8459 -> 9112.066623 | S11: 38.1504 | T11: =S11/3.6 -> 10.59733333 | AC11: =SUM(B11:M11)+$K$42+$N$42 -> 0
A12: 2 | B12: 89.8376 | C12: 4.9065 | D12: 1.1191 | E12: 0.117 | F12: 0.1813 | G12: 0.0041 | H12: 0.0466 | I12: 0.0402 | J12: 0.0679 | K12: 0.0023 | L12: 1.7258 | M12: 1.9515 | N12: 0.7509 | O12: =P12*238.8459 -> 8235.717132 | P12: 34.4813 | Q12: =P12/3.6 -> 9.578138889 | R12: =S12*238.8459 -> 9121.954844 | S12: 38.1918 | T12: =S12/3.6 -> 10.60883333 | U12: 11553 | V12: 48.3697 | W12: =V12/3.6 -> 13.43602778 | X12: -13.6 | Y12: -12.9 | AC12: 99.9999
A13: 3 | O13: =P13*238.8459 -> 8235.717132 | P13: 34.4813 | Q13: =P13/3.6 -> 9.578138889 | R13: =S13*238.8459 -> 9121.954844 | S13: 38.1918 | T13: =S13/3.6 -> 10.60883333 | V13: 0 | W13: =V13/3.6 -> 0 | AC13: 0 | AD13: =IF(AC13=100,"ОК"," ") -> 
A14: 4 | O14: 8235.717132 | P14: 34.4813 | Q14: 9.578138889 | R14: 9121.954844 | S14: 38.1918 | T14: 10.60883333 | W14: =V14/3.6 -> 0 | AC14: 0 | AD14: =IF(AC14=100,"ОК"," ") -> 
A15: 5 | O15: 8235.717132 | P15: 34.4813 | Q15: 9.578138889 | R15: 9121.954844 | S15: 38.1918 | T15: 10.60883333 | W15: 0 | AC15: 0
A16: 6 | O16: 8235.717132 | P16: 34.4813 | Q16: 9.578138889 | R16: 9121.954844 | S16: 38.1918 | T16: 10.60883333 | W16: =V16/3.6 -> 0 | AC16: 0
A17: 7 | O17: 8235.717132 | P17: 34.4813 | Q17: 9.578138889 | R17: 9121.954844 | S17: 38.1918 | T17: 10.60883333 | W17: =V17/3.6 -> 0 | AC17: 0
A18: 8 | O18: 8235.717132 | P18: 34.4813 | Q18: 9.578138889 | R18: 9121.954844 | S18: 38.1918 | T18: 10.60883333 | W18: =V18/3.6 -> 0 | AC18: 0
A19: 9 | B19: 89.7628 | C19: 4.9414 | D19: 1.1312 | E19: 0.1179 | F19: 0.1861 | G19: 0.0042 | H19: 0.048 | I19: 0.0415 | J19: 0.0679 | K19: 0.0031 | L19: 1.7472 | M19: 1.9488 | N19: 0.7515 | O19: 8239.562551 | P19: 34.4974 | Q19: 9.582611111 | R19: 9125.991339 | S19: 38.2087 | T19: 10.61352778 | U19: 11553 | V19: 48.3721 | W19: =V19/3.6 -> 13.43669444 | X19: -10.8 | Y19: -9.5 | AC19: 100.0001
A20: 10 | O20: 8239.562551 | P20: 34.4974 | Q20: 9.582611111 | R20: 9125.991339 | S20: 38.2087 | T20: 10.61352778 | W20: =V20/3.6 -> 0 | AC20: 0
A21: 11 | O21: 8239.562551 | P21: 34.4974 | Q21: 9.582611111 | R21: 9125.991339 | S21: 38.2087 | T21: 10.61352778 | W21: =V21/3.6 -> 0 | AC21: 0
A22: 12 | O22: 8239.562551 | P22: 34.4974 | Q22: 9.582611111 | R22: 9125.991339 | S22: 38.2087 | T22: 10.61352778 | W22: 0 | AC22: 0
A23: 13 | O23: 8239.562551 | P23: 34.4974 | Q23: 9.582611111 | R23: 9125.991339 | S23: 38.2087 | T23: 10.61352778 | W23: =V23/3.6 -> 0 | AC23: 0
A24: 14 | O24: 8239.562551 | P24: 34.4974 | Q24: 9.582611111 | R24: 9125.991339 | S24: 38.2087 | T24: 10.61352778 | W24: =V24/3.6 -> 0 | AC24: 0
A25: 15 | B25: 89.7471 | C25: 4.9335 | D25: 1.0836 | E25: 0.1153 | F25: 0.1841 | G25: 0.0043 | H25: 0.0477 | I25: 0.0407 | J25: 0.0627 | K25: 0.0061 | L25: 1.7974 | M25: 1.9775 | N25: 0.7512 | O25: 8223.942029 | P25: 34.432 | Q25: 9.564444444 | R25: 9109.009396 | S25: 38.1376 | T25: 10.59377778 | U25: 11534 | V25: 48.2903 | W25: 13.41397222 | X25: -10.2 | Y25: -9.5 | AB25: 0.0008 | AC25: 100 | AD25: ОК
A26: 16 | O26: 8223.942029 | P26: 34.432 | Q26: 9.564444444 | R26: 9109.009396 | S26: 38.1376 | T26: 10.59377778 | W26: =V26/3.6 -> 0 | Z26: 0.0002 | AA26: 0.0006 | AC26: 0
A27: 17 | O27: 8223.942029 | P27: 34.432 | Q27: 9.564444444 | R27: 9109.009396 | S27: 38.1376 | T27: 10.59377778 | W27: =V27/3.6 -> 0 | AC27: 0
A28: 18 | O28: 8223.942029 | P28: 34.432 | Q28: 9.564444444 | R28: 9109.009396 | S28: 38.1376 | T28: 10.59377778 | V28: 0 | W28: 0 | AC28: 0
A29: 19 | O29: 8223.942029 | P29: 34.432 | Q29: 9.564444444 | R29: 9109.009396 | S29: 38.1376 | T29: 10.59377778 | W29: 0 | AC29: 0
A30: 20 | O30: 8223.942029 | P30: 34.432 | Q30: 9.564444444 | R30: 9109.009396 | S30: 38.1376 | T30: 10.59377778 | W30: =V30/3.6 -> 0 | AC30: 0 | AD30: =IF(AC30=100,"ОК"," ") -> 
A31: 21 | O31: 8223.942029 | P31: 34.432 | Q31: 9.564444444 | R31: 9109.009396 | S31: 38.1376 | T31: 10.59377778 | W31: =V31/3.6 -> 0 | AC31: 0
A32: 22 | B32: 89.6337 | C32: 5.0169 | D32: 1.1205 | E32: 0.1187 | F32: 0.1903 | G32: 0.0042 | H32: 0.048 | I32: 0.0411 | J32: 0.06 | K32: 0.0066 | L32: 1.7914 | M32: 1.9685 | N32: 0.7521 | O32: 8236.003747 | P32: 34.4825 | Q32: 9.578472222 | R32: 9121.978728 | S32: 38.1919 | T32: 10.60886111 | U32: 11543 | V32: 48.3302 | W32: 13.42505556 | X32: -9.9 | Y32: -9.1 | AC32: 99.9999
A33: 23 | O33: 8236.003747 | P33: 34.4825 | Q33: 9.578472222 | R33: 9121.978728 | S33: 38.1919 | T33: 10.60886111 | W33: 0 | AB33: 0.0008 | AC33: 0 | AD33: =IF(AC33=100,"ОК"," ") -> 
A34: 24 | O34: 8236.003747 | P34: 34.4825 | Q34: 9.578472222 | R34: 9121.978728 | S34: 38.1919 | T34: 10.60886111 | V34: 0 | W34: 0 | AC34: 0
A35: 25 | O35: 8236.003747 | P35: 34.4825 | Q35: 9.578472222 | R35: 9121.978728 | S35: 38.1919 | T35: 10.60886111 | W35: 0 | AC35: 0
A36: 26 | O36: 8236.003747 | P36: 34.4825 | Q36: 9.578472222 | R36: 9121.978728 | S36: 38.1919 | T36: =S36/3.6 -> 10.60886111 | W36: 0 | AC36: 0
A37: 27 | O37: 8236.003747 | P37: 34.4825 | Q37: 9.578472222 | R37: 9121.978728 | S37: 38.1919 | T37: 10.60886111 | W37: =V37/3.6 -> 0 | AC37: 0
A38: 28 | O38: 8236.003747 | P38: 34.4825 | Q38: 9.578472222 | R38: 9121.978728 | S38: 38.1919 | T38: 10.60886111 | W38: =V38/3.6 -> 0 | AC38: 0
A39: 29 | B39: 89.3134 | C39: 5.0721 | D39: 1.2883 | E39: 0.1358 | F39: 0.2324 | G39: 0.0044 | H39: 0.06 | I39: 0.0543 | J39: 0.0827 | K39: 0.0064 | L39: 1.7951 | M39: 1.955 | N39: 0.7566 | O39: 8285.34931 | P39: 34.6891 | Q39: =P39/3.6 -> 9.635861111 | R39: 9174.883095 | S39: 38.4134 | T39: =S39/3.6 -> 10.67038889 | U39: 11576 | V39: 48.4669 | W39: 13.46302778 | X39: -9.2 | Y39: -8.7 | Z39: 0.0002 | AA39: 0.0006 | AC39: 99.9999
A40: 30 | O40: 8285.34931 | P40: 34.6891 | Q40: =P40/3.6 -> 9.635861111 | R40: 9174.883095 | S40: 38.4134 | T40: =S40/3.6 -> 10.67038889 | AC40: 0
A41: 31 | O41: 8285.34931 | P41: 34.6891 | Q41: =P41/3.6 -> 9.635861111 | R41: 9174.883095 | S41: 38.4134 | T41: =S41/3.6 -> 10.67038889 | AC41: 0
A42: Рівень одоризації відповідає чинним нормативним документам | O42: =SUMPRODUCT(O11:O41,' розрахунок 11.5'!AQ7:AQ37)/' розрахунок 11.5'!AQ38 -> 8237.561839 | P42: =SUMPRODUCT(P11:P41,' розрахунок 11.5'!AQ7:AQ37)/' розрахунок 11.5'!AQ38 -> 34.48902342 | Q42: =SUMPRODUCT(Q11:Q41,' розрахунок 11.5'!AQ7:AQ37)/' розрахунок 11.5'!AQ38 -> 9.580284284 | R42: =SUMPRODUCT(R11:R41,' розрахунок 11.5'!AQ7:AQ37)/' розрахунок 11.5'!AQ38 -> 9124.005682 | S42: =SUMPRODUCT(S11:S41,' розрахунок 11.5'!AQ7:AQ37)/' розрахунок 11.5'!AQ38 -> 38.20038645 | T42: =SUMPRODUCT(T11:T41,' розрахунок 11.5'!AQ7:AQ37)/' розрахунок 11.5'!AQ38 -> 10.61121846
H43: Середньозважене значення теплоти згоряння:
B46: Начальник управління Красилівського ЛВУМГ Байханов М.Д.
C47: Підрозділу підприємства, якому підпорядкована лабораторія | O47: прізвище | R47: підпис | V47: дата
B48: Завідувач лабораторією Пілецька С.А.
C49: Лабораторія, де здійснювалось вимірювання газу | O49: прізвище | R49: підпис | V49: дата
B50: Начальник служби метрології Мягкий С.В.
C51: Підрозділу, відповідального за облік газу за маршрутом | O51: прізвище | R51: підпис | V51: дата

Sheet розрахунок 11.5
A2: Додаток до Паспорту фізико-хімічних показників природного газу по маршруту № 11
A4: Число місяця | B4: Теплота згоряння вища, МДж/м3 | C4: Хмельницька область | AQ4: Загальний обсяг газу, м3
C5: Обсяг газу переданого за добу, м3
C6: ГРС Красилів (місто) | D6: ГРС Красилів (цукр. завод) | E6: АГНКС ПП АвтоГаз Красилів | F6: ГРС Печеськи | G6: ГРС Закриниччя | H6: ГРС Чепелівка | I6: ГРС Чернелівка | J6: ГРС Заслучне | K6: ГРС Яворівці | L6: ГРС Пашутенці | M6: ГРС Митинці | N6: ГРС Хмельницький -1(Лісові Грінівці | O6: АГНКС-1 Хмельницький | P6: ГРС Везденьки | Q6: ГРС Черепова | R6: ГРС Грузевиця | S6: ГРС Хмельницький-2(Шаровечка) | T6: ГРС Малиничі | U6: АГНКС ТОВ ТД " Сан Ойл" | V6: ГРС Хмельницький3(Нижні Вовківці) | W6: ГРС Скарженці | X6: ГРС Сутківці | Y6: ГРС Глушківці | Z6: ГРС Мицівці | AA6: ГРС Дунаївці | AB6: ГРС Маків | AC6: ГРС Кам.Подільська №1 (місто) | AD6: ГРС Кам.Подільська №1 (цем. з-д) | AE6: ГРС Кам.Подільська №2 (ТЕЦ) | AF6: ГРС Шмирки | AG6: ГРС Купіль | AH6: ГРС Базалія | AI6: ГРС Теофіполь | AJ6: ГРС Заруддя | AK6: ГРС Ямпіль | AL6: ГРС Білогір'я | AM6: ГРС Денисівка | AN6: ГРС Гарнишівка | AO6: ГРС Волочиськ | AP6: машзавод "Мотор Січ"
A7: 1 | B7: 38.15 | C7: 26420 | D7: 0 | E7: 630 | F7: 7370 | G7: 2030 | H7: 2270 | I7: 1800 | J7: 3270 | K7: 1880 | L7: 4640 | M7: 1660 | N7: 253770 | O7: 0 | P7: 1970 | Q7: 6090 | R7: 11900 | S7: 0 | T7: 8910 | U7: 780 | V7: 0 | W7: 1590 | X7: 19750 | Y7: 2630 | Z7: 12700 | AA7: 34010 | AB7: 9860 | AC7: 68930 | AD7: 64620 | AE7: 0 | AF7: 3110 | AG7: 3860 | AH7: 10090 | AI7: 23710 | AJ7: 8290 | AK7: 6010 | AL7: 12270 | AM7: 4640 | AN7: 12350 | AO7: 33930 | AP7: 0 | AQ7: =SUM(C7:AP7) -> 667740
A8: 2 | B8: 38.19 | C8: 20360 | D8: 0 | E8: 540 | F8: 5550 | G8: 1630 | H8: 1680 | I8: 1350 | J8: 2460 | K8: 1390 | L8: 3330 | M8: 1190 | N8: 234040 | O8: 70 | P8: 1470 | Q8: 4040 | R8: 8760 | S8: 0 | T8: 6110 | U8: 830 | V8: 0 | W8: 1600 | X8: 13150 | Y8: 1910 | Z8: 9040 | AA8: 24510 | AB8: 6930 | AC8: 55160 | AD8: 51660 | AE8: 0 | AF8: 2300 | AG8: 2810 | AH8: 9270 | AI8: 18200 | AJ8: 5900 | AK8: 4810 | AL8: 9180 | AM8: 3390 | AN8: 8940 | AO8: 28260 | AP8: 1610 | AQ8: =SUM(C8:AP8) -> 553430
A9: 3 | B9: 38.19 | C9: 15220 | D9: 0 | E9: 670 | F9: 4190 | G9: 1170 | H9: 1350 | I9: 970 | J9: 1830 | K9: 1020 | L9: 2520 | M9: 820 | N9: 195850 | O9: 330 | P9: 1030 | Q9: 2770 | R9: 5840 | S9: 0 | T9: 4340 | U9: 890 | V9: 0 | W9: 3530 | X9: 7040 | Y9: 1420 | Z9: 5770 | AA9: 17670 | AB9: 4310 | AC9: 46310 | AD9: 44990 | AE9: 0 | AF9: 1580 | AG9: 2010 | AH9: 6910 | AI9: 12800 | AJ9: 4460 | AK9: 4420 | AL9: 7150 | AM9: 2640 | AN9: 5580 | AO9: 20310 | AP9: 5470 | AQ9: 445180
A10: 4 | B10: 38.19 | C10: 11630 | D10: 0 | E10: 930 | F10: 3210 | G10: 830 | H10: 1060 | I10: 710 | J10: 1530 | K10: 610 | L10: 2120 | M10: 600 | N10: 188160 | O10: 720 | P10: 800 | Q10: 2310 | R10: 4790 | S10: 0 | T10: 3830 | U10: 1070 | V10: 0 | W10: 2770 | X10: 7420 | Y10: 1180 | Z10: 4120 | AA10: 15770 | AB10: 3310 | AC10: 42430 | AD10: 43920 | AE10: 0 | AF10: 1200 | AG10: 1660 | AH10: 5660 | AI10: 9860 | AJ10: 2850 | AK10: 5290 | AL10: 5390 | AM10: 1830 | AN10: 4660 | AO10: 17800 | AP10: 5480 | AQ10: 407510
A11: 5 | B11: 38.19 | C11: 10020 | D11: 0 | E11: 960 | F11: 2730 | G11: 700 | H11: 910 | I11: 570 | J11: 1380 | K11: 480 | L11: 1910 | M11: 520 | N11: 176240 | O11: 420 | P11: 700 | Q11: 2000 | R11: 4180 | S11: 0 | T11: 3540 | U11: 1320 | V11: 0 | W11: 2730 | X11: 6210 | Y11: 1080 | Z11: 3890 | AA11: 14160 | AB11: 3620 | AC11: 42850 | AD11: 44580 | AE11: 0 | AF11: 1090 | AG11: 1620 | AH11: 5470 | AI11: 8530 | AJ11: 2620 | AK11: 4460 | AL11: 4330 | AM11: 1550 | AN11: 4160 | AO11: 16350 | AP11: 4190 | AQ11: 382070
A12: 6 | B12: 38.19 | C12: 9690 | D12: 0 | E12: 590 | F12: 2570 | G12: 580 | H12: 860 | I12: 530 | J12: 1370 | K12: 480 | L12: 1910 | M12: 570 | N12: 174700 | O12: 320 | P12: 670 | Q12: 1960 | R12: 4060 | S12: 0 | T12: 3660 | U12: 840 | V12: 0 | W12: 2700 | X12: 6380 | Y12: 1070 | Z12: 4110 | AA12: 14380 | AB12: 3420 | AC12: 42210 | AD12: 19500 | AE12: 0 | AF12: 1050 | AG12: 1540 | AH12: 4940 | AI12: 7780 | AJ12: 2360 | AK12: 1770 | AL12: 3590 | AM12: 1330 | AN12: 4040 | AO12: 15450 | AP12: 0 | AQ12: 342980
A13: 7 | B13: 38.19 | C13: 9280 | D13: 0 | E13: 640 | F13: 2360 | G13: 510 | H13: 880 | I13: 560 | J13: 1420 | K13: 460 | L13: 1810 | M13: 540 | N13: 166230 | O13: 130 | P13: 680 | Q13: 1980 | R13: 3940 | S13: 0 | T13: 3400 | U13: 580 | V13: 0 | W13: 2600 | X13: 6100 | Y13: 1020 | Z13: 3740 | AA13: 12560 | AB13: 2500 | AC13: 42630 | AD13: 17610 | AE13: 0 | AF13: 1050 | AG13: 1510 | AH13: 2680 | AI13: 6970 | AJ13: 2100 | AK13: 1650 | AL13: 3770 | AM13: 1300 | AN13: 3780 | AO13: 15540 | AP13: 510 | AQ13: 325020
A14: 8 | B14: 38.19 | C14: 13670 | D14: 0 | E14: 520 | F14: 3250 | G14: 770 | H14: 1260 | I14: 890 | J14: 1950 | K14: 830 | L14: 2320 | M14: 910 | N14: 188440 | O14: 380 | P14: 980 | Q14: 2770 | R14: 5620 | S14: 0 | T14: 4410 | U14: 690 | V14: 0 | W14: 3170 | X14: 8240 | Y14: 1290 | Z14: 4930 | AA14: 18270 | AB14: 4530 | AC14: 47660 | AD14: 18120 | AE14: 0 | AF14: 1490 | AG14: 1990 | AH14: 6210 | AI14: 10390 | AJ14: 3410 | AK14: 2210 | AL14: 5310 | AM14: 1890 | AN14: 5320 | AO14: 18060 | AP14: 0 | AQ14: 392150
A15: 9 | B15: 38.21 | C15: 18710 | D15: 0 | E15: 660 | F15: 4400 | G15: 1190 | H15: 1650 | I15: 1180 | J15: 2120 | K15: 1220 | L15: 2720 | M15: 1050 | N15: 231020 | O15: 350 | P15: 1260 | Q15: 3880 | R15: 7560 | S15: 0 | T15: 5450 | U15: 570 | V15: 0 | W15: 3620 | X15: 10120 | Y15: 1590 | Z15: 6960 | AA15: 24300 | AB15: 6400 | AC15: 58990 | AD15: 24350 | AE15: 0 | AF15: 1890 | AG15: 2520 | AH15: 6840 | AI15: 14660 | AJ15: 4650 | AK15: 3400 | AL15: 7700 | AM15: 2710 | AN15: 7070 | AO15: 22940 | AP15: 1410 | AQ15: 497110
A16: 10 | B16: 38.21 | C16: 23270 | D16: 0 | E16: 870 | F16: 5670 | G16: 1460 | H16: 1950 | I16: 1480 | J16: 2320 | K16: 1440 | L16: 3200 | M16: 1230 | N16: 233740 | O16: 650 | P16: 1340 | Q16: 6810 | R16: 7120 | S16: 0 | T16: 6340 | U16: 1070 | V16: 0 | W16: 4030 | X16: 11630 | Y16: 1730 | Z16: 8010 | AA16: 27690 | AB16: 6600 | AC16: 61650 | AD16: 27910 | AE16: 0 | AF16: 2100 | AG16: 2350 | AH16: 7750 | AI16: 16490 | AJ16: 5680 | AK16: 6180 | AL16: 9050 | AM16: 3070 | AN16: 7080 | AO16: 23110 | AP16: 6010 | AQ16: 538080
A17: 11 | B17: 38.21 | C17: 20590 | D17: 0 | E17: 900 | F17: 5030 | G17: 1390 | H17: 1700 | I17: 1190 | J17: 2090 | K17: 1190 | L17: 3030 | M17: 1100 | N17: 217970 | O17: 540 | P17: 1310 | Q17: 3980 | R17: 7990 | S17: 0 | T17: 5530 | U17: 1100 | V17: 0 | W17: 3660 | X17: 10740 | Y17: 1570 | Z17: 5080 | AA17: 23060 | AB17: 5070 | AC17: 55610 | AD17: 24540 | AE17: 0 | AF17: 1890 | AG17: 2360 | AH17: 7020 | AI17: 13750 | AJ17: 5010 | AK17: 6230 | AL17: 7480 | AM17: 2430 | AN17: 6370 | AO17: 22860 | AP17: 5730 | AQ17: 487090
A18: 12 | B18: 38.21 | C18: 24990 | D18: 0 | E18: 710 | F18: 6310 | G18: 1670 | H18: 2190 | I18: 1700 | J18: 2680 | K18: 1700 | L18: 3540 | M18: 1350 | N18: 229360 | O18: 940 | P18: 1640 | Q18: 5380 | R18: 9900 | S18: 0 | T18: 6890 | U18: 840 | V18: 0 | W18: 4420 | X18: 13410 | Y18: 1860 | Z18: 6680 | AA18: 27470 | AB18: 6300 | AC18: 58320 | AD18: 25750 | AE18: 0 | AF18: 2510 | AG18: 2880 | AH18: 8300 | AI18: 18800 | AJ18: 6560 | AK18: 6090 | AL18: 9010 | AM18: 3240 | AN18: 8410 | AO18: 28810 | AP18: 5180 | AQ18: 545790
A19: 13 | B19: 38.21 | C19: 24450 | D19: 0 | E19: 790 | F19: 6000 | G19: 1700 | H19: 2310 | I19: 1610 | J19: 2460 | K19: 1710 | L19: 3490 | M19: 1220 | N19: 228740 | O19: 340 | P19: 1640 | Q19: 4840 | R19: 9450 | S19: 0 | T19: 6590 | U19: 1160 | V19: 0 | W19: 4160 | X19: 12340 | Y19: 1750 | Z19: 6520 | AA19: 24930 | AB19: 6230 | AC19: 57210 | AD19: 23860 | AE19: 0 | AF19: 2360 | AG19: 2820 | AH19: 9210 | AI19: 18070 | AJ19: 6280 | AK19: 4040 | AL19: 9040 | AM19: 3220 | AN19: 7570 | AO19: 27630 | AP19: 3240 | AQ19: 528980
A20: 14 | B20: 38.21 | C20: 24280 | D20: 0 | E20: 520 | F20: 5310 | G20: 1480 | H20: 2000 | I20: 1360 | J20: 2290 | K20: 1530 | L20: 3520 | M20: 1190 | N20: 240550 | O20: 120 | P20: 1350 | Q20: 5000 | R20: 9060 | S20: 0 | T20: 6510 | U20: 830 | V20: 0 | W20: 4190 | X20: 12730 | Y20: 1780 | Z20: 6640 | AA20: 25350 | AB20: 5900 | AC20: 61140 | AD20: 26060 | AE20: 0 | AF20: 2120 | AG20: 2530 | AH20: 5310 | AI20: 14830 | AJ20: 4810 | AK20: 3270 | AL20: 7800 | AM20: 2530 | AN20: 6600 | AO20: 24670 | AP20: 1230 | AQ20: 526390
A21: 15 | B21: 38.14 | C21: 12520 | D21: 0 | E21: 920 | F21: 2870 | G21: 720 | H21: 1010 | I21: 700 | J21: 1350 | K21: 740 | L21: 2160 | M21: 590 | N21: 178490 | O21: 470 | P21: 950 | Q21: 2450 | R21: 5080 | S21: 0 | T21: 3940 | U21: 1110 | V21: 0 | W21: 2930 | X21: 7620 | Y21: 1250 | Z21: 4080 | AA21: 16880 | AB21: 3870 | AC21: 44690 | AD21: 19550 | AE21: 0 | AF21: 1230 | AG21: 1660 | AH21: 4730 | AI21: 7960 | AJ21: 2930 | AK21: 2840 | AL21: 4290 | AM21: 1470 | AN21: 4000 | AO21: 17280 | AP21: 6130 | AQ21: 371460
A22: 16 | B22: 38.14 | C22: 13090 | D22: 0 | E22: 830 | F22: 2680 | G22: 660 | H22: 950 | I22: 610 | J22: 1350 | K22: 710 | L22: 2040 | M22: 640 | N22: 175870 | O22: 990 | P22: 690 | Q22: 2130 | R22: 5060 | S22: 0 | T22: 3800 | U22: 790 | V22: 0 | W22: 2860 | X22: 7190 | Y22: 1090 | Z22: 4420 | AA22: 18730 | AB22: 4330 | AC22: 44460 | AD22: 29520 | AE22: 0 | AF22: 1120 | AG22: 1460 | AH22: 3500 | AI22: 7850 | AJ22: 2680 | AK22: 2450 | AL22: 4110 | AM22: 1330 | AN22: 3850 | AO22: 16750 | AP22: 5480 | AQ22: 376070
A23: 17 | B23: 38.14 | C23: 12230 | D23: 0 | E23: 960 | F23: 2500 | G23: 550 | H23: 810 | I23: 520 | J23: 1240 | K23: 650 | L23: 1950 | M23: 540 | N23: 176800 | O23: 640 | P23: 730 | Q23: 2010 | R23: 4410 | S23: 0 | T23: 3600 | U23: 1010 | V23: 0 | W23: 2820 | X23: 6450 | Y23: 1090 | Z23: 4030 | AA23: 15010 | AB23: 3610 | AC23: 46870 | AD23: 29470 | AE23: 0 | AF23: 1020 | AG23: 1710 | AH23: 5890 | AI23: 7770 | AJ23: 2320 | AK23: 4080 | AL23: 3790 | AM23: 1240 | AN23: 3900 | AO23: 15700 | AP23: 5260 | AQ23: 373180
A24: 18 | B24: 38.14 | C24: 11600 | D24: 0 | E24: 700 | F24: 2420 | G24: 540 | H24: 890 | I24: 470 | J24: 1190 | K24: 580 | L24: 1890 | M24: 490 | N24: 167740 | O24: 740 | P24: 680 | Q24: 1950 | R24: 4560 | S24: 0 | T24: 3430 | U24: 1120 | V24: 0 | W24: 2690 | X24: 6700 | Y24: 960 | Z24: 3660 | AA24: 14580 | AB24: 3130 | AC24: 40360 | AD24: 29720 | AE24: 0 | AF24: 1020 | AG24: 1420 | AH24: 3450 | AI24: 6850 | AJ24: 2220 | AK24: 3870 | AL24: 3670 | AM24: 1190 | AN24: 3660 | AO24: 15840 | AP24: 5610 | AQ24: 351590
A25: 19 | B25: 38.14 | C25: 10480 | D25: 0 | E25: 690 | F25: 2070 | G25: 430 | H25: 770 | I25: 420 | J25: 1160 | K25: 520 | L25: 1790 | M25: 470 | N25: 154260 | O25: 410 | P25: 640 | Q25: 1940 | R25: 4020 | S25: 0 | T25: 3320 | U25: 1220 | V25: 0 | W25: 2640 | X25: 5430 | Y25: 980 | Z25: 3500 | AA25: 14590 | AB25: 3040 | AC25: 38530 | AD25: 32210 | AE25: 0 | AF25: 970 | AG25: 1410 | AH25: 5510 | AI25: 6960 | AJ25: 2120 | AK25: 3500 | AL25: 3090 | AM25: 1160 | AN25: 3320 | AO25: 14780 | AP25: 4260 | AQ25: 332610
A26: 20 | B26: 38.14 | C26: 10350 | D26: 0 | E26: 610 | F26: 2380 | G26: 500 | H26: 850 | I26: 540 | J26: 1260 | K26: 550 | L26: 2030 | M26: 550 | N26: 154000 | O26: 410 | P26: 790 | Q26: 2070 | R26: 4240 | S26: 0 | T26: 3660 | U26: 1140 | V26: 0 | W26: 2680 | X26: 6920 | Y26: 990 | Z26: 3790 | AA26: 15620 | AB26: 3560 | AC26: 41180 | AD26: 27280 | AE26: 0 | AF26: 1020 | AG26: 1530 | AH26: 4900 | AI26: 7960 | AJ26: 2110 | AK26: 1570 | AL26: 3500 | AM26: 1210 | AN26: 3630 | AO26: 15060 | AP26: 0 | AQ26: 330440
A27: 21 | B27: 38.14 | C27: 11190 | D27: 0 | E27: 510 | F27: 2330 | G27: 450 | H27: 880 | I27: 490 | J27: 1270 | K27: 580 | L27: 1970 | M27: 530 | N27: 170340 | O27: 170 | P27: 780 | Q27: 2190 | R27: 4200 | S27: 0 | T27: 3660 | U27: 610 | V27: 0 | W27: 2810 | X27: 6640 | Y27: 1030 | Z27: 3670 | AA27: 14850 | AB27: 2670 | AC27: 43100 | AD27: 20660 | AE27: 0 | AF27: 1090 | AG27: 1550 | AH27: 2940 | AI27: 7460 | AJ27: 2270 | AK27: 1800 | AL27: 4260 | AM27: 1420 | AN27: 3500 | AO27: 16610 | AP27: 1100 | AQ27: 341580
A28: 22 | B28: 38.19 | C28: 10250 | D28: 0 | E28: 970 | F28: 1960 | G28: 420 | H28: 720 | I28: 420 | J28: 1070 | K28: 530 | L28: 1580 | M28: 430 | N28: 157290 | O28: 660 | P28: 610 | Q28: 1840 | R28: 3820 | S28: 0 | T28: 3160 | U28: 1040 | V28: 0 | W28: 2640 | X28: 5750 | Y28: 930 | Z28: 3160 | AA28: 13960 | AB28: 3040 | AC28: 40300 | AD28: 14220 | AE28: 0 | AF28: 920 | AG28: 1250 | AH28: 3430 | AI28: 6420 | AJ28: 2240 | AK28: 2360 | AL28: 2990 | AM28: 1170 | AN28: 3160 | AO28: 15820 | AP28: 5340 | AQ28: 315870
A29: 23 | B29: 38.19 | C29: 9710 | D29: 0 | E29: 660 | F29: 1960 | G29: 360 | H29: 660 | I29: 340 | J29: 1030 | K29: 440 | L29: 1440 | M29: 390 | N29: 155400 | O29: 340 | P29: 530 | Q29: 1660 | R29: 3700 | S29: 0 | T29: 2770 | U29: 1060 | V29: 0 | W29: 2410 | X29: 5480 | Y29: 800 | Z29: 2990 | AA29: 12750 | AB29: 2820 | AC29: 38930 | AD29: 15020 | AE29: 0 | AF29: 900 | AG29: 1130 | AH29: 4940 | AI29: 5830 | AJ29: 2140 | AK29: 3960 | AL29: 2900 | AM29: 1070 | AN29: 2850 | AO29: 12730 | AP29: 5020 | AQ29: 307120
A30: 24 | B30: 38.19 | C30: 9970 | D30: 0 | E30: 850 | F30: 1880 | G30: 320 | H30: 480 | I30: 420 | J30: 1040 | K30: 440 | L30: 1590 | M30: 370 | N30: 155550 | O30: 750 | P30: 510 | Q30: 1820 | R30: 3550 | S30: 0 | T30: 2660 | U30: 1050 | V30: 0 | W30: 2550 | X30: 5360 | Y30: 750 | Z30: 3030 | AA30: 12290 | AB30: 2740 | AC30: 40300 | AD30: 16310 | AE30: 0 | AF30: 970 | AG30: 1240 | AH30: 4330 | AI30: 6100 | AJ30: 1890 | AK30: 3600 | AL30: 3190 | AM30: 1000 | AN30: 3180 | AO30: 15700 | AP30: 5980 | AQ30: 313760
A31: 25 | B31: 38.19 | C31: 7830 | D31: 0 | E31: 560 | F31: 2050 | G31: 450 | H31: 4040 | I31: 460 | J31: 1130 | K31: 540 | L31: 1800 | M31: 400 | N31: 150990 | O31: 520 | P31: 590 | Q31: 1950 | R31: 4030 | S31: 0 | T31: 2830 | U31: 1060 | V31: 0 | W31: 2700 | X31: 5810 | Y31: 840 | Z31: 3270 | AA31: 13540 | AB31: 2740 | AC31: 40370 | AD31: 34100 | AE31: 0 | AF31: 910 | AG31: 1300 | AH31: 5430 | AI31: 6530 | AJ31: 1930 | AK31: 2100 | AL31: 3230 | AM31: 1150 | AN31: 3250 | AO31: 14070 | AP31: 6350 | AQ31: 330850
A32: 26 | B32: 38.19 | C32: 11050 | D32: 0 | E32: 820 | F32: 2310 | G32: 400 | H32: 770 | I32: 470 | J32: 1080 | K32: 500 | L32: 1770 | M32: 440 | N32: 153360 | O32: 640 | P32: 690 | Q32: 1950 | R32: 3430 | S32: 0 | T32: 3230 | U32: 1250 | V32: 0 | W32: 2500 | X32: 5920 | Y32: 980 | Z32: 3340 | AA32: 14650 | AB32: 3400 | AC32: 40500 | AD32: 34470 | AE32: 0 | AF32: 890 | AG32: 1320 | AH32: 4370 | AI32: 6700 | AJ32: 1830 | AK32: 4180 | AL32: 2710 | AM32: 1000 | AN32: 3020 | AO32: 14870 | AP32: 5240 | AQ32: 336050
A33: 27 | B33: 38.19 | C33: 10820 | D33: 0 | E33: 530 | F33: 2220 | G33: 500 | H33: 840 | I33: 550 | J33: 1290 | K33: 590 | L33: 2030 | M33: 480 | N33: 154310 | O33: 180 | P33: 850 | Q33: 2210 | R33: 3890 | S33: 0 | T33: 3760 | U33: 900 | V33: 0 | W33: 2700 | X33: 6410 | Y33: 1040 | Z33: 3820 | AA33: 14560 | AB33: 3470 | AC33: 43340 | AD33: 38490 | AE33: 0 | AF33: 990 | AG33: 1410 | AH33: 5020 | AI33: 7620 | AJ33: 2140 | AK33: 1620 | AL33: 3100 | AM33: 1150 | AN33: 3600 | AO33: 14540 | AP33: 2150 | AQ33: 343120
A34: 28 | B34: 38.19 | C34: 10460 | D34: 0 | E34: 480 | F34: 1850 | G34: 470 | H34: 710 | I34: 430 | J34: 1240 | K34: 490 | L34: 1720 | M34: 450 | N34: 151780 | O34: 490 | P34: 600 | Q34: 1830 | R34: 3600 | S34: 0 | T34: 3260 | U34: 800 | V34: 0 | W34: 2580 | X34: 5470 | Y34: 890 | Z34: 3270 | AA34: 12180 | AB34: 2540 | AC34: 42400 | AD34: 39510 | AE34: 0 | AF34: 940 | AG34: 1270 | AH34: 2520 | AI34: 6370 | AJ34: 2020 | AK34: 1510 | AL34: 3110 | AM34: 1030 | AN34: 2870 | AO34: 13370 | AP34: 1190 | AQ34: 325700
A35: 29 | B35: 38.41 | C35: 9270 | D35: 0 | E35: 760 | F35: 1780 | G35: 320 | H35: 630 | I35: 340 | J35: 950 | K35: 410 | L35: 1340 | M35: 380 | N35: 150800 | O35: 270 | P35: 480 | Q35: 1610 | R35: 2990 | S35: 0 | T35: 2630 | U35: 880 | V35: 0 | W35: 2370 | X35: 5050 | Y35: 670 | Z35: 2660 | AA35: 11280 | AB35: 3150 | AC35: 37100 | AD35: 42080 | AE35: 0 | AF35: 800 | AG35: 1110 | AH35: 2740 | AI35: 5320 | AJ35: 1560 | AK35: 1770 | AL35: 2480 | AM35: 940 | AN35: 2770 | AO35: 11990 | AP35: 6240 | AQ35: =SUM(C35:AP35) -> 317920
A36: 30 | B36: 38.41 | C36: 9250 | D36: 0 | E36: 730 | F36: 1680 | G36: 300 | H36: 650 | I36: 350 | J36: 930 | K36: 440 | L36: 1420 | M36: 420 | N36: 151160 | O36: 360 | P36: 520 | Q36: 1550 | R36: 3200 | S36: 0 | T36: 2630 | U36: 1050 | V36: 0 | W36: 2320 | X36: 5050 | Y36: 750 | Z36: 2740 | AA36: 13310 | AB36: 2690 | AC36: 37390 | AD36: 41060 | AE36: 0 | AF36: 840 | AG36: 1110 | AH36: 4270 | AI36: 5700 | AJ36: 1530 | AK36: 2380 | AL36: 2510 | AM36: 960 | AN36: 2640 | AO36: 12730 | AP36: 7840 | AQ36: =SUM(C36:AP36) -> 324460
A37: 31 | B37: 38.41 | C37: 9063 | D37: 0 | E37: 851 | F37: 1695 | G37: 338 | H37: 584 | I37: 319 | J37: 940 | K37: 400 | L37: 1313 | M37: 360 | N37: 158310 | O37: 1127 | P37: 476 | Q37: 1490 | R37: 2912 | S37: 0 | T37: 2666 | U37: 688 | V37: 0 | W37: 2300 | X37: 4911 | Y37: 697 | Z37: 2684 | AA37: 10239 | AB37: 2512 | AC37: 36786 | AD37: 50146 | AE37: 0 | AF37: 761 | AG37: 1091 | AH37: 4639 | AI37: 5930 | AJ37: 1655 | AK37: 3504 | AL37: 2464 | AM37: 932 | AN37: 2683 | AO37: 2464 | AP37: 7915 | AQ37: =SUM(C37:AP37) -> 327845
A38: Загальний обсяг газу, м3 | C38: =SUM(C7:C37) -> 431713 | D38: =SUM(D7:D37) -> 0 | E38: =SUM(E7:E37) -> 22361 | F38: =SUM(F7:F37) -> 100585 | G38: 24838 | H38: =SUM(H7:H37) -> 38314 | I38: 23749 | J38: =SUM(J7:J37) -> 48690 | K38: 25050 | L38: 69893 | M38: 21880 | N38: =SUM(N7:N37) -> 5675260 | O38: 14477 | P38: =SUM(P7:P37) -> 27956 | Q38: 86460 | R38: 166862 | S38: 0 | T38: 130516 | U38: 29348 | V38: 0 | W38: 89270 | X38: 247421 | Y38: 37617 | Z38: 146304 | AA38: 543149 | AB38: 128292 | AC38: 1437706 | AD38: 971286 | AE38: 0 | AF38: 42131 | AG38: 55431 | AH38: 168269 | AI38: 310170 | AJ38: 100565 | AK38: 106924 | AL38: 156464 | AM38: 55192 | AN38: 147813 | AO38: 556024 | AP38: 121165 | AQ38: =SUM(AQ7:AQ37) -> 12359145
A39: Енергія, МДж | C39: =SUMPRODUCT($B7:$B37,C7:C37) -> 16490783.73 | D39: =SUMPRODUCT(A7:A37,D7:D37) -> 0 | E39: =SUMPRODUCT(B7:B37,E7:E37) -> 854284.41 | F39: =SUMPRODUCT(B7:B37,F7:F37) -> 3841972.35 | G39: =SUMPRODUCT(B7:B37,G7:G37) -> 948678.08 | H39: =SUMPRODUCT(B7:B37,H7:H37) -> 1463458.94 | I39: =SUMPRODUCT(B7:B37,I7:I37) -> 907107.19 | J39: =SUMPRODUCT(B7:B37,J7:J37) -> 1859798.9 | K39: =SUMPRODUCT(B7:B37,K7:K37) -> 956818.6 | L39: =SUMPRODUCT(B7:B37,L7:L37) -> 2669622.63 | M39: =SUMPRODUCT(B7:B37,M7:M37) -> 835738.3 | N39: =SUMPRODUCT(B7:B37,N7:N37) -> 216798040.6 | O39: =SUMPRODUCT(B7:B37,O7:O37) -> 553130.47 | P39: =SUMPRODUCT($B7:$B37,P7:P37) -> 1067793.36 | Q39: =SUMPRODUCT($B7:$B37,Q7:Q37) -> 3302547.6 | R39: 6373429.32 | S39: 0 | T39: 4985269.06 | U39: 1121106.28 | V39: 0 | W39: 3410205.6 | X39: 9450592.31 | Y39: 1436789.87 | Z39: 5588060.54 | AA39: 20746705.29 | AB39: 4900434.02 | AC39: 54919814.56 | AD39: 37113779.36 | AE39: 0 | AF39: 1609270.61 | AG39: 2117256.11 | AH39: 6427694.89 | AI39: 11847464.4 | AJ39: 3841116.95 | AK39: 4084449.74 | AL39: 5976175.34 | AM39: 2108112.92 | AN39: 5645833.93 | AO39: 21236579.24 | AP39: 4631194.25 | AQ39: =SUMPRODUCT(B7:B37,AQ7:AQ37) -> 472121109.8
A40: Теплота згоряння (середньозважене значення за місяць), МДж/м³ | C40: =C39/C38 -> 38.19848772 | D40: =IF(D38=0,"0",D39/D38) -> 0 | E40: =E39/E38 -> 38.20421314 | F40: =F39/F38 -> 38.19627529 | G40: =G39/G38 -> 38.19462437 | H40: =H39/H38 -> 38.19645404 | I40: 38.19559518 | J40: 38.19673239 | K40: 38.1963513 | L40: 38.19585123 | M40: 38.19644881 | N40: 38.20054775 | O40: 38.20753402 | P40: 38.19549864 | Q40: 38.19740458 | R40: 38.19581043 | S40: =IF(S38=0,"0",S39/S38) -> 0 | T40: 38.19661237 | U40: 38.20043206 | V40: =IF(V38=0,"0",V39/V38) -> 0 | W40: 38.2010261 | X40: 38.19640334 | Y40: 38.19522742 | Z40: 38.19485824 | AA40: 38.19707905 | AB40: 38.19750273 | AC40: 38.19961422 | AD40: 38.21096913 | AE40: =IF(AE38=0,"0",AE39/AE38) -> 0 | AF40: 38.19682918 | AG40: 38.19624596 | AH40: 38.19892488 | AI40: 38.19668053 | AJ40: 38.19536568 | AK40: 38.19955987 | AL40: 38.19521002 | AM40: 38.1959871 | AN40: 38.19578745 | AO40: 38.19363776 | AP40: 38.22221145 | AQ40: 38.20014327
A41: Теплота згоряння (середньозважене значення за місяць), ккал/м³ | C41: =C40*238.8459 -> 9123.552179 | D41: 0 | E41: =E40*238.8459 -> 9124.919671 | F41: =F40*238.8459 -> 9123.023748 | G41: 9122.629432 | H41: 9123.066441 | I41: 9122.861308 | J41: 9123.132924 | K41: 9123.041902 | L41: 9122.922463 | M41: 9123.065193 | N41: 9124.044207 | O41: 9125.71285 | P41: 9122.838249 | Q41: 9123.293475 | R41: 9122.912718 | S41: 0 | T41: 9123.104258 | U41: 9124.016575 | V41: 0 | W41: 9124.15846 | X41: 9123.054332 | Y41: 9122.77347 | Z41: 9122.685292 | AA41: 9123.215724 | AB41: 9123.316917 | AC41: 9123.821238 | AD41: 9126.533311 | AE41: 0 | AF41: 9123.156042 | AG41: 9123.016744 | AH41: 9123.656591 | AI41: 9123.120538 | AJ41: 9122.806493 | AK41: 9123.808258 | AL41: 9122.769312 | AM41: 9122.954915 | AN41: 9122.907229 | AO41: 9122.393784 | AP41: 9129.218493 | AQ41: 9123.947601
A42: Теплота згоряння (середньозважене значення за місяць), кВт*год./м³ | C42: =C40/3.6 -> 10.61069103 | D42: 0 | E42: =E40/3.6 -> 10.61228143 | F42: =F40/3.6 -> 10.61007647 | G42: 10.60961788 | H42: 10.61012612 | I42: 10.60988755 | J42: 10.61020344 | K42: 10.61009758 | L42: 10.60995867 | M42: 10.61012467 | N42: 10.61126326 | O42: 10.61320389 | P42: 10.60986073 | Q42: 10.61039016 | R42: 10.60994734 | S42: 0 | T42: 10.6101701 | U42: 10.61123113 | V42: 0 | W42: 10.61139614 | X42: 10.61011204 | Y42: 10.6097854 | Z42: 10.60968284 | AA42: 10.61029974 | AB42: 10.61041742 | AC42: 10.61100395 | AD42: 10.61415809 | AE42: 0 | AF42: 10.61023033 | AG42: 10.61006832 | AH42: 10.61081247 | AI42: 10.61018904 | AJ42: 10.6098238 | AK42: 10.61098885 | AL42: 10.60978056 | AM42: 10.60999642 | AN42: 10.60994096 | AO42: 10.60934382 | AP42: 10.61728096 | AQ42: 10.61115091

Sheet додаток 11,5
A2: Додаток до Паспорту фізико-хімічних показників природного газу №11
A4: Область | B4: ГРС, прямий споживач | C4: Cередньозважене значення вищої теплоти згоряння
C5: МДж/м³ | D5: ккал/м³ | E5: кВт*год./м³
A6: Хмельницька область | B6: ГРС Красилів(місто) | C6: 38.2 | D6: 9124 | E6: 10.61
B7: ГРС Красилів (цукр. завод) | C7: 0 | D7: 0 | E7: 0
B8: АГНКС ПП АвтоГаз Красилів | C8: 38.2 | D8: 9125 | E8: 10.61
B9: ГРС Печеськи | C9: 38.2 | D9: 9123 | E9: 10.61
B10: ГРС Закриниччя | C10: 38.19 | D10: 9123 | E10: 10.61
B11: ГРС Чепелівка | C11: 38.2 | D11: 9123 | E11: 10.61
B12: ГРС Чернелівка | C12: 38.2 | D12: 9123 | E12: 10.61
B13: ГРС Заслучне | C13: 38.2 | D13: 9123 | E13: 10.61
B14: ГРС Яворівці | C14: 38.2 | D14: 9123 | E14: 10.61
B15: ГРС Пашутенці | C15: 38.2 | D15: 9123 | E15: 10.61
B16: ГРС Митенці | C16: 38.2 | D16: 9123 | E16: 10.61
B17: ГРС Хмельницький-1(Лісові Гринівці) | C17: 38.2 | D17: 9124 | E17: 10.61
B18: АГНКС-1 Хмельницький | C18: 38.21 | D18: 9126 | E18: 10.61
B19: ГРС Везденьки | C19: 38.2 | D19: 9123 | E19: 10.61
B20: ГРС Черепова | C20: 38.2 | D20: 9123 | E20: 10.61
B21: ГРС Грузевиця | C21: 38.2 | D21: 9123 | E21: 10.61
B22: ГРС Хмельницький-2(Шаровечка) | C22: 0 | D22: 0 | E22: 0
B23: ГРС Малиничі | C23: 38.2 | D23: 9123 | E23: 10.61
B24: АГНКС ТОВ ТД "Сан Ойл" | C24: 38.2 | D24: 9124 | E24: 10.61
B25: ГРС Хмельницький-3(Нижні Вовківці) | C25: 0 | D25: 0 | E25: 0
B26: ГРС Скарженці | C26: 38.2 | D26: 9124 | E26: 10.61
B27: ГРС Сутківці | C27: 38.2 | D27: 9123 | E27: 10.61
B28: ГРС Глушківці | C28: 38.2 | D28: 9123 | E28: 10.61
B29: ГРС Мицівці | C29: 38.19 | D29: 9123 | E29: 10.61
B30: ГРС Дунаївці | C30: 38.2 | D30: 9123 | E30: 10.61
B31: ГРС Маків | C31: 38.2 | D31: 9123 | E31: 10.61
B32: ГРС Кам'янець-Подільський-1(місто) | C32: 38.2 | D32: 9124 | E32: 10.61
B33: ГРС Кам'янець-Подільський-1(цем.з-д) | C33: 38.21 | D33: 9127 | E33: 10.61
B34: ГРС Кам'янець-Подільський-2(ТЕЦ) | C34: 0 | D34: 0 | E34: 0
B35: ГРС Шмирки | C35: 38.2 | D35: 9123 | E35: 10.61
B36: ГРС Купіль | C36: 38.2 | D36: 9123 | E36: 10.61
B37: ГРС Базалія | C37: 38.2 | D37: 9124 | E37: 10.61
B38: ГРС Теофіполь | C38: 38.2 | D38: 9123 | E38: 10.61
B39: ГРС Заруддя | C39: 38.2 | D39: 9123 | E39: 10.61
B40: ГРС Ямпіль | C40: 38.2 | D40: 9124 | E40: 10.61
B41: ГРС Білогір'я | C41: 38.2 | D41: 9123 | E41: 10.61
B42: ГРС Денисівка | C42: 38.2 | D42: 9123 | E42: 10.61
B43: ГРС Гарнишівка | C43: 38.2 | D43: 9123 | E43: 10.61
B44: ГРС Волочиськ | C44: 38.19 | D44: 9122 | E44: 10.61
B45: "Мотор Січ" | C45: 38.22 | D45: 9129 | E45: 10.62
A46: Середньозважене значення вищої теплоти згоряння по маршруту № 11 | C46: 38.2 | D46: 9124 | E46: 10.61
A50: Начальник управління Красилівського ЛВУМГ Байханов М.Д.
A51: Підрозділу підприємства, якому підпорядкована лабораторія | D51: прізвище | E51: підпис | F51: дата
A52: Завідувач лабораторією Пілецька С.А.
A53: Лабораторія, де здійснювалось вимірювання газу | D53: прізвище | E53: підпис | F53: дата
A54: Начальник служби метрології Мягкий С.В.
A55: Підрозділу, відповідального за облік газу за маршрутом | D55: прізвище | E55: підпис | F55: дата

Sheet додаток 12,5
A2: Додаток до Паспорту фізико-хімічних показників природного газу №12
A4: Область | B4: ГРС, прямий споживач | C4: Cередньозважене значення вищої теплоти згоряння
C5: МДж/м³ | D5: ккал/м³ | E5: кВт*год./м³
A6: Хмельницька область | B6: ГРС Цимбалівка | C6: 38.2 | D6: 9124 | E6: 10.61
A7: Середньозважене значення вищої теплоти згоряння по маршруту № 12 | C7: 38.2 | D7: 9124 | E7: 10.61
A11: Начальник управління Красилівського ЛВУМГ Байханов М.Д.
A12: Підрозділу підприємства, якому підпорядкована лабораторія | D12: прізвище | E12: підпис | F12: дата
A13: Завідувач лабораторією Пілецька С.А.
A14: Лабораторія, де здійснювалось вимірювання газу | D14: прізвище | E14: підпис | F14: дата
A15: Начальник служби метрології Мягкий С.В.
A16: Підрозділу, відповідального за облік газу за маршрутом | D16: прізвище | E16: підпис | F16: дата

Sheet variablesList (hidden)
A1: 3 | B1: x:\gaysin | C1: 10, 11, 24, 25, 127, 128, 132, 180, 207, 215 | D1: x:\
B2: x:\Illinci
B3: x:\Talne
